Cogmind - Beta 12 X1 @@@ ROGUE MODE // 2022.07.25 @ 16:49:37 Player: Boris Result: Escaped! Performance ------------- Evolutions (9) 4500 Regions Visited (40) 8000 Robots Destroyed (386) 1930 Value Destroyed (24816) 24816 Prototype IDs (246) 4920 Alien Tech Used (0) 0 Bonus (31774) 31774 TOTAL SCORE: 75940 Bonus ------- Triggered High Security 500 High Alert Combat Kills 5522 Follower Combat Kills 11030 Entered Garrisons 2800 Used RIF Installer 7500 Aligned with FarCom 300 Met Data Miner 300 Used Data Conduit 3000 Pursued by Intercept 500 Win 3000 Friendly Fire -2678 Cogmind --------- Core Integrity 113/1600 Matter 226/300 Energy 59/100 System Corruption 29% Temperature Cool (0) Movement Core (50) Location To Epsilon Eridani Parts ------- > --- POWER (3) -------- (None) > --- PROPULSION (6) --- Centrium Leg > --- UTILITY (12) ----- Experimental Core Analyzer Relay Coupler [NC] (26) Relay Coupler [Proto] (9) Relay Coupler [Proto] (22) Relay Coupler [Proto] (22) > --- WEAPON (4) ------- (None) > --- INVENTORY (5) ---- Long-range Phase Cannon Advanced Remote Datajack Advanced Remote Datajack Peak State ------------ > --- POWER ------------ Quantum Reactor Light Quantum Reactor Light Quantum Reactor > --- PROPULSION ------- Enhanced Armored Medium Treads Enhanced Armored Medium Treads Armored Heavy Treads Biometal Heavy Treads > --- UTILITY ---------- Advanced Cooling System Advanced Cooling System Huge Storage Unit Experimental Targeting Computer Experimental Core Analyzer Advanced Weapon Cycler Improved Remote Force Field Relay Coupler [NC] Relay Coupler [C] Relay Coupler [Specialist] Relay Coupler [Hunter] Relay Coupler [Proto] > --- WEAPON ----------- KE Penetrator KE Penetrator Helical Railgun Advanced Remote Datajack > --- INVENTORY -------- Biometal Heavy Treads Advanced Energy Well High-capacity Matter Pod Graphene Brace Relay Coupler [Sentry] Relay Coupler [Sentry] Relay Coupler [Sentry] Relay Coupler [Demolisher] Relay Coupler [Proto] Relay Coupler [Proto] Relay Coupler [Proto] Relay Coupler [Proto] Relay Coupler [Proto] Heavy Wave Gun Heavy Wave Gun Enhanced Quantum Rifle Compact HERF Cannon Long-range Phase Cannon Enhanced Nova Cannon KE Penetrator Heavy Shock Bomb Launcher Advanced Remote Datajack Longsword +1 [Rating: 196] Favorites ----------- Power Antimatter Reactor Engine Ion Engine Power Core Reinforced Fission Core Reactor Antimatter Reactor Propulsion Improved Heavy Treads Treads Improved Heavy Treads Leg Flexi-carbon Leg Wheel Wheel Utility High-capacity Storage Unit Device Advanced Cooling System Storage High-capacity Storage Unit Processor Advanced Targeting Computer Hackware Relay Coupler [Sentry] Protection Hardened Medium Armor Plating Weapon KE Penetrator Energy Gun Wave Gun Energy Cannon Matter Neutralizer Ballistic Gun KE Penetrator Ballistic Cannon Flak Cannon Launcher Advanced EMP Blaster Special Weapon Remote Datajack Impact Weapon Heavy Hammer Slashing Weapon Longsword +1 Special Melee Weapon Improved Datajack Build | -11 -10 -10 -10 -9 -8 -8 -8 -8 -8 -8 -8 -8 -7 -7 -7 -7 -6 -6 -6 -6 -5 -5 -5 -5 -5 -5 -5 -4 -4 -4 -4 -4 -4 -3 -3 -3 -3 -2 -2 -1 ------- Run | Scr Mat Min Exi Min Mat Gar Mat Gar Mat Gar Mat Gar Fac Gar Fac Gar Fac Low Low Dat Pro Fac Gar Fac Gar Fac Gar Fac Was Fac Gar Fac Gar Res Gar Res Gar Res Gar Acc Slots Evolved 18 | . . . . . 4 . . . . . . . 2 . . . 2 . . . . 2 . . . . . 2 . . . . . 2 . . . 2 . 2 Power 2 | . . . . . . . . . . . . . . . . . 1 . . . . . . . . . . . . . . . . . . . . 1 . . Propulsion 4 | . . . . . 2 . . . . . . . . . . . . . . . . 1 . . . . . 1 . . . . . . . . . . . . Utility 10 | . . . . . 1 . . . . . . . 2 . . . 1 . . . . 1 . . . . . 1 . . . . . 1 . . . 1 . 2 Weapon 2 | . . . . . 1 . . . . . . . . . . . . . . . . . . . . . . . . . . . . 1 . . . . . . Parts Attached 553 | 7 8 10 . 2 5 3 8 24 11 18 27 8 9 12 5 18 3 4 9 10 10 35 26 13 37 7 6 13 2 16 21 12 16 6 29 5 29 3 22 44 Power 49 | 1 2 1 . . . . 1 2 1 1 2 . 1 2 1 1 1 . . . 1 4 3 1 1 1 . 2 . 1 3 1 . . 3 . 2 . 4 5 Engine 13 | 1 2 1 . . . . 1 1 1 . 2 . 1 . 1 . . . . . . 2 . . . . . . . . . . . . . . . . . . Core 14 | . . . . . . . . 1 . 1 . . . 2 . . . . . . 1 1 2 1 1 1 . 1 . . 2 . . . . . . . . . Reactor 22 | . . . . . . . . . . . . . . . . 1 1 . . . . 1 1 . . . . 1 . 1 1 1 . . 3 . 2 . 4 5 Propulsion 84 | 2 1 1 . . 2 1 2 2 . 4 9 3 . 1 . 1 . . . . 2 8 1 3 7 2 1 3 . 3 3 1 1 1 3 . 3 . 2 11 Treads 50 | 2 1 1 . . 2 1 2 2 . 3 7 3 . 1 . 1 . . . . . . . . . . . . . 3 3 1 1 1 3 . 3 . 1 8 Leg 26 | . . . . . . . . . . 1 . . . . . . . . . . 2 8 1 3 6 . 1 . . . . . . . . . . . 1 3 Wheel 8 | . . . . . . . . . . . 2 . . . . . . . . . . . . . 1 2 . 3 . . . . . . . . . . . . Hover . | . . . . . . . . . . . . . . . . . . . . . . . . . . . . . . . . . . . . . . . . . Flight . | . . . . . . . . . . . . . . . . . . . . . . . . . . . . . . . . . . . . . . . . . Utility 186 | 2 2 4 . . 2 1 . 7 3 4 6 . 5 3 1 15 2 3 9 6 2 8 8 3 10 2 4 1 1 4 7 5 7 2 9 2 11 2 10 13 Device 80 | 1 1 2 . . 1 . . 1 . . 5 . 2 2 . 9 . 2 6 3 1 4 4 2 5 2 . . . 3 1 1 3 1 3 1 5 1 4 4 Storage 5 | 1 1 1 . . . . . . . . . . 1 . . . . . . . . . . . . . . . . 1 . . . . . . . . . . Processor 12 | . . 1 . . . 1 . . . 1 . . . . . . 1 . . . . 1 . . 2 . . 1 . . . . . . 1 . . . . 3 Hackware 69 | . . . . . 1 . . 3 1 1 1 . 2 1 1 6 . . 1 . . 1 3 . 3 . 4 . 1 . 6 4 4 1 5 1 6 1 6 5 Protection 20 | . . . . . . . . 3 2 2 . . . . . . 1 1 2 3 1 2 1 1 . . . . . . . . . . . . . . . 1 Artifact . | . . . . . . . . . . . . . . . . . . . . . . . . . . . . . . . . . . . . . . . . . Weapon 234 | 2 3 4 . 2 1 1 5 13 7 9 10 5 3 6 3 1 . 1 . 4 5 15 14 6 19 2 1 7 1 8 8 5 8 3 14 3 13 1 6 15 Energy Gun 61 | . 2 . . . . . . . . 1 7 2 2 . . . . 1 . . 2 . 7 2 3 . . . . . 2 1 8 1 7 1 7 . 2 3 Energy Cannon 25 | . 1 . . . . 1 . 2 1 1 . . . 3 . 1 . . . 1 . 1 . 1 3 . . . . 1 1 . . . 1 . 1 . 1 4 Ballistic Gun 52 | 2 . 2 . . 1 . 4 5 3 . . . . 1 . . . . . 1 1 7 1 . 4 . . 4 . 2 . 1 . . 3 . 3 . 3 4 Ballistic Cannon 5 | . . 2 . 2 . . . . . . . . . . 1 . . . . . . . . . . . . . . . . . . . . . . . . . Launcher 17 | . . . . . . . . . . 3 3 2 . 1 . . . . . . 2 4 . . . . . 1 . . . . . . . . . . . 1 Special Weapon 36 | . . . . . . . . . . . . . 1 . 2 . . . . . . 2 3 . 5 1 1 1 1 2 3 3 . 1 2 2 2 1 . 3 Impact Weapon 1 | . . . . . . . . . . 1 . . . . . . . . . . . . . . . . . . . . . . . . . . . . . . Slashing Weapon 30 | . . . . . . . 1 3 1 1 . 1 . 1 . . . . . 2 . 1 3 3 4 1 . 1 . 3 2 . . 1 1 . . . . . Piercing Weapon . | . . . . . . . . . . . . . . . . . . . . . . . . . . . . . . . . . . . . . . . . . Special Melee Weapon 7 | . . . . . . . . 3 2 2 . . . . . . . . . . . . . . . . . . . . . . . . . . . . . . Unidentified Prototypes 10 | . . 1 . . 1 . . 1 . . 2 . 1 . 1 1 . . . . . . . . . . . . . . . . . . . . . . . 2 Corrupted Parts 6 | . . . . . . . . . . . . . . . . . . . . . . 5 . . . . . . . . . . . . . . . . . 1 System Corruption 52 | . . . . . . . . . . . . . . . . . . . . . . 50 . . . . . . . . . . . . . . . . . 2 Parts Lost 111 | . 1 2 . . . . . 1 2 8 2 . . 4 . 1 . . . 2 2 18 3 1 9 3 1 3 . 3 1 1 1 . 3 . 1 . 6 32 Power 16 | . . . . . . . . . . 1 . . . 2 . . . . . . . 2 1 1 1 2 . . . . . . . . 1 . . . 1 4 Propulsion 32 | . 1 . . . . . . . . 1 2 . . . . 1 . . . . 1 4 1 . 3 1 1 2 . 3 . . . . . . . . 1 10 Utility 32 | . . 1 . . . . . . 1 1 . . . 1 . . . . . 1 1 5 . . 3 . . . . . 1 . 1 . 1 . 1 . 2 12 Weapon 31 | . . 1 . . . . . 1 1 5 . . . 1 . . . . . 1 . 7 1 . 2 . . 1 . . . 1 . . 1 . . . 2 6 Highest Loss Streak 21 | . 1 2 . . . . . 1 2 5 1 . . 3 . 1 . . . 2 1 14 2 1 3 2 1 2 . 2 1 1 1 . 1 . 1 . 4 21 To Critical Strikes 2 | . . . . . . . . . . . . . . . . . . . . . . 1 . . . 1 . . . . . . . . . . . . . . Average Slot Usage (%) 85 | . 99 95 71 94 91 100 100 87 80 72 91 93 82 78 76 74 75 80 76 79 81 79 92 96 96 93 93 91 94 85 83 83 82 80 82 85 87 84 90 81 Engine 3 | . 14 14 14 14 9 9 9 6 5 1 3 9 7 3 . 2 . . . . . 1 1 . . . . . . . . . . . . . . . . . Core 2 | . . . . . . . . 2 3 6 5 . . 2 6 . . . . . . 4 8 10 9 7 5 6 5 5 9 7 5 4 3 . . . . . Reactor 3 | . . . . . . . . . . . . . . . . 4 13 13 13 13 12 2 . . . . . . . 3 . 2 5 4 3 9 9 8 12 9 Treads 17 | . 27 28 28 28 35 36 36 24 18 18 23 23 15 15 15 15 13 13 13 13 10 . . . . . . . . 10 14 15 15 14 14 14 16 17 16 13 Leg 2 | . . . . . . . . . . 2 . . . . . . . . . . 4 22 28 29 27 24 20 14 10 1 . . . . . . . . . . Device 7 | . 14 3 . . . . . . . . 5 . 4 7 9 18 13 20 10 20 20 13 16 19 19 16 11 5 1 3 3 . 3 5 5 7 1 4 6 14 Storage 7 | . 14 14 14 14 9 9 9 9 9 9 9 9 7 7 7 7 6 6 6 6 6 5 5 5 5 5 5 5 5 5 5 5 5 4 4 4 4 4 4 3 Processor 5 | . . 6 14 14 9 9 9 9 8 9 9 9 7 3 . . . 6 6 . . 1 . . 4 5 5 9 10 10 10 9 5 4 4 4 4 4 . 2 Hackware 10 | . . . . . 8 9 9 4 . . 1 9 16 15 13 2 3 . 2 . . 4 5 5 6 11 16 21 24 22 22 26 27 24 25 24 30 27 30 23 Protection 1 | . . . . . . . . 4 8 5 1 . . . . . 3 . 3 6 5 3 5 5 1 . . . . . . . . . . . . . . . Energy Gun 6 | . 17 . . . . . . . . 5 23 17 14 8 . . . 5 6 6 4 1 11 13 7 11 11 3 . . 8 10 10 11 5 1 6 13 9 1 Energy Cannon 2 | . 5 . . . . 7 3 . 1 2 . . . 5 15 15 13 6 6 5 6 1 . . 1 1 . . . . . . . . . . . 1 . . Ballistic Gun 5 | . 4 9 . . 1 9 20 23 24 1 . . . . . . . . . 1 4 8 2 . 3 . . 7 11 11 1 . . . 6 14 9 . 2 9 Ballistic Cannon 1 | . . 16 . 22 18 10 3 . . . . . . . . . . . . . . . . . . . . . . . . . . . . . . . . . Special Weapon 2 | . . . . . . . . . . . . . 1 4 5 7 6 6 6 1 . . . . 1 1 3 1 3 . 3 2 3 2 3 2 2 2 3 2 Slashing Weapon 1 | . . . . . . . . 2 . 5 1 4 5 1 1 . . . . 3 1 . 1 2 1 1 1 2 . 2 1 1 . 1 1 . . . . . Naked Turns . | . . . . . . . . . . . . . . . . . . . . . . . . . . . . . . . . . . . . . . . . . Heaviest Build 175 | 13 21 56 45 56 57 58 58 69 67 67 63 61 58 82 77 86 111 104 105 106 113 103 92 93 93 87 73 81 81 122 138 135 137 153 155 146 151 150 168 175 Greatest Support 225 | 40 40 40 40 40 83 91 91 150 150 150 115 150 150 150 145 145 145 145 145 145 145 120 90 90 100 90 70 70 40 225 225 225 225 225 210 210 210 205 205 220 Greatest Overweight (x) 9 | . . 1 1 1 . . . . . . 3 3 . 1 . . . . . . 1 2 1 1 9 7 7 3 2 3 . . . . . . . . 1 . Average Overweight (x) . | . . . 1 1 . . . . . . 1 1 . . . . . . . . . . . . . 1 1 1 1 . . . . . . . . . . . Largest Inventory Capacity 25 | 8 10 20 20 20 20 20 20 20 20 20 20 20 20 20 20 20 20 20 20 20 20 20 20 20 20 20 20 20 20 25 25 25 25 25 25 25 25 25 25 25 Average Capacity 20 | 7 9 12 20 20 20 20 20 20 20 20 20 20 20 20 20 20 20 20 20 20 20 20 20 20 20 20 20 20 20 23 25 25 25 25 25 25 25 25 25 22 Most Carried 25 | 2 10 15 20 20 20 20 20 20 20 20 20 20 20 20 20 20 20 20 20 20 20 20 20 20 20 20 20 20 20 25 25 25 25 25 25 25 25 25 25 25 Average Carried 19 | 1 6 10 17 19 19 19 19 19 19 17 19 20 19 19 20 19 19 20 19 17 19 18 19 19 19 19 19 19 19 21 24 24 24 24 24 24 24 24 24 21 Final Capacity 25 | 8 10 20 20 20 20 20 20 20 20 20 20 20 20 20 20 20 20 20 20 20 20 20 20 20 20 20 20 20 20 25 25 25 25 25 25 25 25 25 25 5 Final Carried 25 | 2 10 16 20 20 20 20 20 20 20 19 20 20 20 20 20 20 20 20 19 20 20 20 20 20 20 20 20 20 20 25 25 25 25 25 25 24 25 24 25 3 Class Distribution -------------------- 28% | Mutant 25% | Botlord-Mutant 18% | Bothacker-Mutant 8% | Scavenger-Mutant 7% | Botlord-Gunner 3% | Scavenger-Skirmisher 3% | Skirmisher Dominant Class ---------------- Scavenger-Mutant | -10/Materials Scavenger-Mutant | -10/Mines Mutant | -10/Exiles Mutant | -9/Mines Mutant | -8/Materials Mutant | -8/Garrison Mutant | -8/Materials Mutant | -8/Garrison Mutant | -8/Materials Mutant | -8/Garrison Scavenger-Skirmisher | -8/Materials Scavenger-Mutant | -8/Garrison Hacker-Mutant | -7/Factory Bothacker-Mutant | -7/Garrison Bothacker-Mutant | -7/Factory Bothacker-Mutant | -7/Garrison Bothacker-Mutant | -6/Factory Bothacker-Mutant | -6/Lower Caves Mutant | -6/Lower Caves Mutant | -6/Data Miner Mutant | -5/Proximity Caves Scavenger-Mutant | -5/Factory Scavenger-Mutant | -5/Garrison Botlord-Mutant | -5/Factory Botlord-Mutant | -5/Garrison Botlord-Mutant | -5/Factory Botlord-Mutant | -5/Garrison Botlord-Mutant | -4/Factory Botlord-Mutant | -4/Waste Botlord-Mutant | -4/Factory Botlord-Mutant | -4/Garrison Botlord-Mutant | -4/Factory Botlord-Mutant | -4/Garrison Botlord-Mutant | -3/Research Botlord-Mutant | -3/Garrison Botlord-Mutant | -3/Research Botlord-Gunner | -3/Garrison Botlord-Mutant | -2/Research Botlord-Mutant | -2/Garrison Botlord-Mutant | -1/Access Resources | -11 -10 -10 -10 -9 -8 -8 -8 -8 -8 -8 -8 -8 -7 -7 -7 -7 -6 -6 -6 -6 -5 -5 -5 -5 -5 -5 -5 -4 -4 -4 -4 -4 -4 -3 -3 -3 -3 -2 -2 -1 ----------- Run | Scr Mat Min Exi Min Mat Gar Mat Gar Mat Gar Mat Gar Fac Gar Fac Gar Fac Low Low Dat Pro Fac Gar Fac Gar Fac Gar Fac Was Fac Gar Fac Gar Res Gar Res Gar Res Gar Acc Matter Collected 12858 | 326 293 213 6 29 18 . 243 679 650 431 636 185 94 283 . 391 73 50 125 100 198 681 573 135 608 96 82 219 . 307 481 199 458 77 1027 332 365 . 802 1393 Remotely . | . . . . . . . . . . . . . . . . . . . . . . . . . . . . . . . . . . . . . . . . . Salvage Created 21186 | 88 712 190 . . 45 . 246 1240 1175 431 1478 892 210 538 . 254 . 85 149 378 1221 1148 869 354 919 137 60 415 . 102 1268 147 395 . 1402 285 577 . 782 2994 Parts 875 | 3 44 13 . . 9 2 12 67 61 24 59 35 17 20 . 14 . . 2 9 26 60 19 17 40 7 2 25 . 12 40 9 23 . 38 16 14 . 33 103 Haulers Intercepted 10 | . 1 . . . . . . . 2 . 3 . 2 1 . . . . . . . 1 . . . . . . . . . . . . . . . . . . Recyclers Shooed 5 | . 1 1 . . . . . . . . . . . . . . . . . . . 1 . . . . . . . 1 . . . . . . . . . 1 Parts Field Recycled . | . . . . . . . . . . . . . . . . . . . . . . . . . . . . . . . . . . . . . . . . . Retrieved Matter . | . . . . . . . . . . . . . . . . . . . . . . . . . . . . . . . . . . . . . . . . . Parts Self-Destructed 22 | . . . . . . . . . . . . . . . . . . 6 9 . 7 . . . . . . . . . . . . . . . . . . . Prevented 4 | . . . . . . . . . . . . . . . . . . . . . 4 . . . . . . . . . . . . . . . . . . . Kills | -11 -10 -10 -10 -9 -8 -8 -8 -8 -8 -8 -8 -8 -7 -7 -7 -7 -6 -6 -6 -6 -5 -5 -5 -5 -5 -5 -5 -4 -4 -4 -4 -4 -4 -3 -3 -3 -3 -2 -2 -1 ------- Run | Scr Mat Min Exi Min Mat Gar Mat Gar Mat Gar Mat Gar Fac Gar Fac Gar Fac Low Low Dat Pro Fac Gar Fac Gar Fac Gar Fac Was Fac Gar Fac Gar Res Gar Res Gar Res Gar Acc Combat Hostiles Destroyed 303 | . 17 6 . . 4 . 2 22 14 18 25 5 1 16 . 6 . . 3 4 24 17 15 6 13 2 1 2 . . 7 2 8 . 10 4 7 . 11 31 Melee 6 | . . . . . . . . . 1 2 . . . . . . . . . 1 . . . . . . . . . . 1 . . . 1 . . . . . Guns 200 | . 11 1 . . . . 2 22 13 4 18 3 1 4 . . . . . . 7 9 15 5 9 . 1 2 . . 6 2 7 . 9 4 5 . 11 29 Cannons 31 | . 6 5 . . 4 . . . . 1 . . . 2 . 6 . . 1 . 2 . . . 2 1 . . . . . . . . . . 1 . . . AOE 42 | . . . . . . . . . . 11 4 2 . 10 . . . . . . 5 8 . . . . . . . . . . . . . . . . . 2 Classes Destroyed 22 | 2 5 1 . . . . 1 1 1 . 4 1 1 . . . . . . . 1 . 1 . . . . . . . . . 1 . . . . . . 2 Worker 20 | . . 1 . . . . . . 7 . 1 . 1 . . . . . . . . 1 . 2 . . . 2 . 1 . 1 . . . . . . . 3 Builder 13 | . . . . . . . . . . . . . 1 . . . . . . . . 5 . . . . . 1 . 1 . . . . . 1 . . . 4 Tunneler 5 | 1 . . . . . . . . . . 1 . . . . . . . . . . . . . . 1 . . . . . . . . . . . . . 2 Hauler 10 | . 1 . . . . . . . 2 . 3 . 2 1 . . . . . . . 1 . . . . . . . . . . . . . . . . . . Recycler 9 | 1 . . . . . . 2 . 3 . . . . . . . . . . . . . . . . . . 2 . . . . . . . . . . . 1 Mechanic 2 | . . . . . . . . . . . . . . . . . . . . . . . . . . . . . . . . . . . . . . . . 2 Operator 3 | . 1 . . . . . . . 1 . . . . . . . . . . . . . . 1 . . . . . . . . . . . . . . . . Watcher 11 | . 3 . . . . . . . 3 . 1 . 1 . . . . . . . . . . 1 . . . . . 2 . . . . . . . . . . Swarmer 66 | . 3 3 . . 4 . . 13 4 5 . . . 7 . . . . 1 . 5 . 3 2 2 . . . . . 3 . 3 . 2 . 2 . 2 2 Cutter 5 | . . . . . . . . . . . . 2 . 2 . . . . . . . . . . . . . . . . . . 1 . . . . . . . Saboteur 1 | . . . . . . . . . . . . . . . . . . . . . . . . . . . . . . . . . . . . . . . . 1 Grunt 118 | . 14 3 . . . . . 2 5 9 12 2 1 4 . 3 . . 1 . 11 10 11 2 3 . . . . . 1 . . . . 3 2 . 5 14 Brawler 9 | . . . . . . . . . . . 3 . . . . . . . . . 1 . . . . . . . . . . . . . . . . . . 5 Duelist 9 | . . . . . . . . . . . 2 . . 1 . 1 . . . . . . . . . . . . . . . . . . 2 . . . . 3 Protector 2 | . . . . . . . . . . . 2 . . . . . . . . . . . . . . . . . . . . . . . . . . . . . Sentry 22 | . . . . . . . 2 3 4 1 4 . . 2 . 1 . . . . . . . . 1 1 . . . . 2 . 1 . . . . . . . Specialist 6 | . . . . . . . . . . . 2 . . . . . . . . . . . . . 1 . . . . . . . . . 2 . . . . 1 Hunter 22 | . . . . . . . . . 1 3 . 1 . . . 1 . . 1 . . 7 . . 2 . . . . . . . . . 5 . . . . 1 Programmer 31 | . . . . . . . . 4 . . . . . . . . . . . . . . . 2 4 1 1 2 . . 1 2 1 . 1 1 2 . 3 6 Behemoth 9 | . . . . . . . . . . . . . . . . . . . . . . . 1 . 2 . . . . . 1 . 1 . . . 3 . 1 . Enhanced Grunt 4 | . . . . . . . . . . . . . . . . . . . . 4 . . . . . . . . . . . . . . . . . . . . Striker 1 | . . . . . . . . . . . . . . . . . . . . . . . . . . . . . . . . . 1 . . . . . . . Packrat 1 | . . . . . . . . . . . . . . . . . . 1 . . . . . . . . . . . . . . . . . . . . . . Thug 1 | . . . . . . . . . . . . . . . . . . . . . 1 . . . . . . . . . . . . . . . . . . . Savage 4 | . . . . . . . . . . . . . . . . . . . . . 4 . . . . . . . . . . . . . . . . . . . Butcher 1 | . . . . . . . . . . . . . . . . . . . . . 1 . . . . . . . . . . . . . . . . . . . Mutant 1 | . . . . . . . . . . . . . . . . . . . . . 1 . . . . . . . . . . . . . . . . . . . Infiltrator 1 | . . . . . . . . . . . . . . 1 . . . . . . . . . . . . . . . . . . . . . . . . . . Best Kill Streak 25 | 1 3 3 . . 4 . 2 6 11 5 9 2 1 6 . 3 . . 1 2 5 13 7 7 3 2 1 3 . 2 2 2 2 . 5 4 4 . 5 25 Combat Bots Only 20 | . 3 3 . . 4 . 2 6 4 5 9 2 1 6 . 3 . . 1 2 5 11 7 4 3 2 1 2 . . 2 1 2 . 5 3 4 . 5 20 Max Kills in Single Turn 5 | 1 2 2 . . 1 . 1 2 2 3 3 1 1 3 . 1 . 1 1 1 3 5 1 3 2 1 1 3 . 2 1 1 1 . 2 2 1 . 1 3 Gunslinging 2 | . 1 . . . . . . 1 . . . . . . . . . . . . . . . 1 1 . . . . . . . . . . 1 . . . 2 Exploded 3 | . . . . . . . . . . 3 3 1 . 3 . . . . . . 3 3 . . . . . . . . . . . . . . . . . 1 Melee 1 | . . . . . . . . . 1 1 . . . . . . . . . 1 . . . . . . . . . . 1 . . . 1 . . . . . Uniques/NPCs Destroyed . | . . . . . . . . . . . . . . . . . . . . . . . . . . . . . . . . . . . . . . . . . Combat | -11 -10 -10 -10 -9 -8 -8 -8 -8 -8 -8 -8 -8 -7 -7 -7 -7 -6 -6 -6 -6 -5 -5 -5 -5 -5 -5 -5 -4 -4 -4 -4 -4 -4 -3 -3 -3 -3 -2 -2 -1 -------- Run | Scr Mat Min Exi Min Mat Gar Mat Gar Mat Gar Mat Gar Fac Gar Fac Gar Fac Low Low Dat Pro Fac Gar Fac Gar Fac Gar Fac Was Fac Gar Fac Gar Res Gar Res Gar Res Gar Acc Damage Taken 29146 | . 514 429 . . 37 . 63 680 949 1069 1140 140 296 1038 10 379 26 18 346 478 1057 2254 1349 335 1319 277 163 325 . 441 919 265 692 79 968 163 1420 28 1652 7828 Core 3361 | . 77 111 . . 20 . 15 52 50 104 121 23 20 28 10 16 . . 65 43 46 362 71 15 105 26 . 22 . 37 63 21 46 . 107 . 136 . 62 1487 Absorbed by Shields 1222 | . . . . . . . . . . . . . . . . 15 . . . . . . . . 31 . . . . . . . . . 199 29 . . 534 414 Reduced by Siege Mode 421 | . . . . . . . . 15 39 5 47 . . 9 . . . . . 70 16 . . . . . . . . . . . . . . . 61 . 34 125 Regen/Repaired (Parts) 883 | . . . . . . . . . . . 736 . 39 . . . . . . . . . . . . . . . . . . . . . . 40 68 . . . Core Remaining (%) 63 | 100 . . . 24 . . . . . . . 30 . . . 89 . . . . 81 . . . . . 42 . . . . . 83 . . . 81 . 95 7 Volleys Fired 1401 | 12 66 31 . . 4 12 9 44 64 17 60 13 12 50 11 59 7 6 35 41 111 54 75 17 58 7 10 10 5 11 61 15 69 14 85 23 44 1 74 104 Largest 4 | 2 2 2 . . 2 1 3 3 3 2 3 2 2 2 1 1 1 1 2 1 1 3 3 3 3 3 2 3 1 3 3 3 3 3 4 4 4 1 4 4 Hottest 338 | 40 110 110 . . 88 63 83 83 121 100 198 142 142 142 105 105 105 85 190 105 105 89 213 225 252 252 162 91 7 91 162 250 218 218 306 187 338 10 329 247 Shots Fired 2474 | 24 132 56 . . 8 12 19 110 144 40 144 22 22 66 11 60 7 6 38 41 109 109 165 45 126 14 13 18 5 22 95 24 95 16 126 51 86 1 122 270 Gun 1943 | 24 110 39 . . . . 19 106 143 19 136 19 21 48 . . . 6 24 36 87 95 155 43 99 8 10 12 . 16 65 15 65 3 74 41 76 . 94 235 Cannon 200 | . 22 17 . . 8 12 . 4 1 3 . . . 7 4 46 1 . 7 3 15 . . 2 16 4 . . . 2 10 . . . 3 . 3 . 3 7 Launcher 60 | . . . . . . . . . . 18 8 3 . 7 . . . . . . 7 13 . . . . . . . . . . . . . . . . . 4 Special 271 | . . . . . . . . . . . . . 1 4 7 14 6 . 7 2 . 1 10 . 11 2 3 6 5 4 20 9 30 13 49 10 7 1 25 24 Kinetic 924 | 24 18 43 . . 8 . 19 106 143 . . . . 4 . . . . . . . 95 21 . 22 . . 12 . 16 11 . . . 53 37 49 . 34 209 Thermal 1204 | . 114 13 . . . . . 4 . 20 136 19 21 51 4 46 1 6 31 39 102 . 134 45 93 12 10 . . 2 64 15 65 3 24 4 30 . 63 33 Explosive 29 | . . . . . . . . . . 18 . . . 7 . . . . . . 2 2 . . . . . . . . . . . . . . . . . . Electromagnetic 46 | . . . . . . 12 . . 1 2 8 3 . . . . . . . . 5 11 . . . . . . . . . . . . . . . . . 4 Robot Hit Streak 40 | 3 8 5 . . 2 . 6 7 19 10 20 17 24 19 6 6 2 3 6 20 40 21 13 7 21 7 4 6 5 24 25 10 22 15 20 17 24 3 14 26 Robot Miss Streak 8 | 3 5 4 . . 8 . 1 4 2 3 3 1 1 2 1 3 2 1 2 2 2 4 3 2 2 1 2 2 . . 3 1 2 1 3 2 6 . 4 7 Penetration Max 2 | . . . . . . . . 1 1 . . . . . . . . . . . . 1 . . 1 . . 2 . 1 . . . . 1 1 . . 1 1 Secondary Targets 51 | . 1 . . . . . . 9 3 . 5 . 1 1 . . . . . . . 3 6 1 1 . 1 . . . 2 . . . . 1 . . 3 13 Max Gunslinging Chain 2 | . 1 . . . . . . 2 1 . 1 . 1 1 . . . . . . . 1 1 1 1 . 1 . . . 1 . . . . 1 . . 1 2 Capacitor 219 | . . . . . . . . . . . . . . 8 . 38 1 6 25 39 102 . . . . . . . . . . . . . . . . . . . Autonomous 24 | . . . . . . . . . . 19 5 . . . . . . . . . . . . . . . . . . . . . . . . . . . . . Shots Hit Robots 1766 | 12 79 29 . . 4 . 12 90 94 36 109 34 23 38 6 25 3 4 22 38 100 73 111 30 100 12 4 19 5 22 66 19 58 15 109 43 45 1 73 203 Core Hits 780 | 3 38 16 . . 5 1 5 40 42 33 56 19 5 37 . 7 . 2 5 15 39 57 41 13 28 3 1 6 . 9 24 5 12 . 39 16 17 . 18 123 Critical Kills 11 | . . . . . . . . 1 2 . . . . . . . . . . . . . . . 2 . . . . . . . . . . . 1 . . 5 Critical Parts Destroyed 18 | . . . . . . . . 5 . 2 . . . . . . . . . . . 2 . . . . . 1 . . . . . . 3 1 . . . 4 Critical Strikes 100 | . 2 . . . 1 . . 7 3 2 9 . 2 3 . . . 1 2 5 22 2 6 3 5 2 1 1 . . 4 1 1 . 3 1 1 . 1 9 Burn 67 | . 2 . . . . . . . . . 9 . 2 3 . . . 1 2 5 22 . 6 3 3 2 1 . . . 3 1 1 . . . . . 1 . Meltdown 1 | . . . . . . . . . . . . . . . . . . . . . . . . . 1 . . . . . . . . . . . . . . . Destroy 26 | . . . . . . . . 6 2 . . . . . . . . . . . . 2 . . 1 . . 1 . . . . . . 3 1 1 . . 9 Blast 1 | . . . . . 1 . . . . . . . . . . . . . . . . . . . . . . . . . . . . . . . . . . . Smash 2 | . . . . . . . . . . 2 . . . . . . . . . . . . . . . . . . . . . . . . . . . . . . Sever 3 | . . . . . . . . 1 1 . . . . . . . . . . . . . . . . . . . . . 1 . . . . . . . . . Melee Attacks 283 | . . . . . . . 1 63 7 33 . 34 4 2 . . . . . 18 . . 8 17 9 3 1 7 . 6 38 . . 1 31 . . . . . Impact 15 | . . . . . . . . . . 15 . . . . . . . . . . . . . . . . . . . . . . . . . . . . . . Slashing 255 | . . . . . . . 1 54 4 17 . 34 4 2 . . . . . 18 . . 8 17 9 3 1 7 . 6 38 . . 1 31 . . . . . Piercing . | . . . . . . . . . . . . . . . . . . . . . . . . . . . . . . . . . . . . . . . . . Sneak Attacks 22 | . . . . . . . . . 3 . . . 3 . . . . . . 1 . . . 1 2 1 . 4 . 2 3 . . . 2 . . . . . Combat Hostiles 9 | . . . . . . . . . 3 . . . . . . . . . . . . . . . . . . . . 1 3 . . . 2 . . . . . Follow-up Attacks . | . . . . . . . . . . . . . . . . . . . . . . . . . . . . . . . . . . . . . . . . . Damage Inflicted 53162 | 147 1107 419 . 15 80 9 233 3701 2161 2310 2734 1975 704 2367 . 577 . 73 418 591 3131 2951 2225 945 2841 419 84 899 . 629 2956 345 1048 66 3455 937 1622 . 1852 7136 Guns 33014 | 147 823 175 . . . . 233 1413 1874 438 1960 349 384 673 . . . 73 306 432 1539 1486 2221 815 2270 179 84 392 . 360 1080 334 1048 66 1676 937 1521 . 1675 6051 Cannons 2823 | . 247 229 . . 79 . . . . 153 . . . 108 . 567 . . 112 . 548 . . . 392 110 . . . . . . . . . . 101 . 177 . Explosions 7339 | . . . . . . . . . . 1355 766 58 . 1586 . . . . . . 1044 1465 . . . . . . . . . . . . . . . . . 1065 Melee 9520 | . . . . . . . . 2288 262 364 . 1568 311 . . . . . . 159 . . . 130 179 122 . 507 . 254 1714 . . . 1662 . . . . . Ramming 466 | . 37 15 . 15 1 9 . . 25 . 8 . 9 . . 10 . . . . . . 4 . . 8 . . . 15 162 11 . . 117 . . . . 20 Kinetic 16494 | 147 137 269 . . 79 . 233 1413 1874 . . . . 91 . . . . . . . 1486 165 . 586 . . 392 . 360 315 . . . 1318 836 857 . 466 5470 Thermal 19644 | . 933 135 . . . . . . . 754 1988 349 384 690 . 567 . 73 418 432 2121 76 2056 815 2076 289 84 . . . 765 334 1048 66 358 101 765 . 1386 581 Explosive 4014 | . . . . . . . . . . 1167 . . . 1586 . . . . . . 624 637 . . . . . . . . . . . . . . . . . . Electromagnetic 3024 | . . . . . . . . . . 25 738 58 . . . . . . . . 386 752 . . . . . . . . . . . . . . . . . 1065 Impact 177 | . . . . . . . . . . 177 . . . . . . . . . . . . . . . . . . . . . . . . . . . . . . Slashing 9343 | . . . . . . . . 2288 262 187 . 1568 311 . . . . . . 159 . . . 130 179 122 . 507 . 254 1714 . . . 1662 . . . . . Piercing . | . . . . . . . . . . . . . . . . . . . . . . . . . . . . . . . . . . . . . . . . . Highest Corruption 56 | . 1 1 1 1 . . . . 6 6 6 6 2 2 2 2 . . . . 5 50 50 50 55 56 56 2 10 12 13 13 14 . 2 2 4 . 2 29 Average Corruption 11 | . 1 1 1 1 . . . . 5 6 6 6 2 2 2 2 . . . . 5 39 50 50 52 55 56 1 8 11 12 13 13 . 1 2 2 . 1 9 Corruption Purged . | . . . . . . . . . . . . . . . . . . . . . . . . . . . . . . . . . . . . . . . . . Corruption Blocked . | . . . . . . . . . . . . . . . . . . . . . . . . . . . . . . . . . . . . . . . . . Effects 549 | . 3 12 4 6 . . . . 2 29 37 12 8 15 5 17 . . . . 13 10 64 27 53 13 21 2 1 16 50 21 51 . 15 4 7 . 5 26 Message Errors 121 | . 2 3 . 1 . . . . . 6 12 3 2 7 1 2 . . . . . 1 9 8 11 3 4 1 . 4 7 2 13 . 8 1 3 . 1 6 Matter Fused 113 | . . 1 . 2 . . . . . 5 10 6 2 1 1 7 . . . . 6 2 13 7 10 4 2 . . 3 11 7 10 . . 1 . . . 2 Heat Flow Errors 61 | . . 2 1 1 . . . . 1 3 1 . 1 3 1 3 . . . . 1 . 4 3 3 1 4 1 1 4 4 4 6 . 1 1 . . . 6 Energy Discharges 55 | . . 3 1 1 . . . . 1 4 3 1 1 . 1 2 . . . . . . 5 2 9 . 2 . . 3 5 1 7 . 1 . . . 2 . Parts Rejected 9 | . . . . . . . . . . . 1 . . 1 . . . . . . . 1 . 2 1 . . . . . 1 . 1 . . . . . . 1 Data Loss (minor) 62 | . . . 2 1 . . . . . 3 3 . 1 1 1 2 . . . . 2 2 5 2 2 2 4 . . 1 12 2 7 . 3 . 3 . . 1 Data Loss (major) 26 | . . 1 . . . . . . . 3 3 1 . 1 . . . . . . 1 . 3 1 3 . 2 . . . 3 . . . 1 . . . 2 1 Misfires 33 | . 1 1 . . . . . . . 2 2 . 1 . . 1 . . . . . 2 8 . 3 . 1 . . 1 5 2 2 . 1 . . . . . Alerts 16 | . . 1 . . . . . . . 3 1 1 . 1 . . . . . . 1 . . 1 . . 1 . . . . 1 2 . . 1 1 . . 1 Misdirections 11 | . . . . . . . . . . . . . . . . . . . . . . 1 . . 3 . . . . . 1 1 2 . . . . . . 3 Weapon Failures 42 | . . . . . . . . . . . 1 . . . . . . . . . 2 1 17 1 8 3 1 . . . 1 1 1 . . . . . . 5 Overload Shots . | . . . . . . . . . . . . . . . . . . . . . . . . . . . . . . . . . . . . . . . . . Overflow Damage 1156 | . . . . . . . . 75 17 50 . . 61 77 . 12 . . 8 . 167 43 . 110 . . . 218 . 16 162 . . . 96 . . . 44 . Projectiles 79 | . . . . . . . . . . . . . . . . 12 . . 8 . 15 . . . . . . . . . . . . . . . . . 44 . Explosions 277 | . . . . . . . . . . 5 . . . 77 . . . . . . 152 43 . . . . . . . . . . . . . . . . . . Melee 800 | . . . . . . . . 75 17 45 . . 61 . . . . . . . . . . 110 . . . 218 . 16 162 . . . 96 . . . . . Knockbacks 6 | . . 2 . . 1 . . . . 1 . . . . . . . . . . . . . . . . . . . . 2 . . . . . . . . . Impact 3 | . . . . . . . . . . 1 . . . . . . . . . . . . . . . . . . . . 2 . . . . . . . . . Kinetic 3 | . . 2 . . 1 . . . . . . . . . . . . . . . . . . . . . . . . . . . . . . . . . . . Secondary . | . . . . . . . . . . . . . . . . . . . . . . . . . . . . . . . . . . . . . . . . . Self-Inflicted Damage 359 | . . . . . . . . . . 158 45 . . 67 . . . . . . 60 . . . . . . . . . . . . . . . . . . 29 Shots 11 | . . . . . . . . . . 5 2 . . 1 . . . . . . 2 . . . . . . . . . . . . . . . . . . 1 Rammed 59 | . 7 4 . 1 1 1 . . 1 . 1 . . . . 1 . . . . . . . . . . . . . 1 21 3 . . 14 . . . . 3 Targets Rammed 64 | . 7 4 . 1 1 2 . . 2 . 1 . 1 . . 1 . . . . . . 1 . . 1 . . . 1 21 3 . . 14 . . . . 3 Kicked 2 | . . . . . . . . . . . . . . . . . . . . . . . 1 . . 1 . . . . . . . . . . . . . . Crushed 3 | . . . . . . 1 . . 1 . . . 1 . . . . . . . . . . . . . . . . . . . . . . . . . . . Highest Temperature 477 | . 132 176 99 101 27 30 48 260 262 187 336 260 230 324 231 255 79 180 360 204 199 314 367 328 319 341 206 132 124 257 279 330 219 12 255 260 319 . 477 265 Average Temperature 90 | . 40 55 89 53 12 9 22 69 87 57 111 107 75 81 100 73 42 74 143 117 121 109 109 98 85 157 72 39 71 77 89 103 62 8 89 91 111 . 116 64 Received Heat Transfer 4739 | . 216 174 . . . . 27 75 252 369 216 45 42 156 6 179 6 9 57 . 397 504 463 63 153 27 9 30 . 72 96 21 60 9 64 4 141 . 189 608 Effects 20 | . . . . . . . . . . . 4 . . . . 1 . . . . . . 2 3 . 1 . . . . . . . . . . 1 . 7 1 Shutdowns 2 | . . . . . . . . . . . . . . . . . . . . . . . . . . . . . . . . . . . . . 1 . 1 . Energy Bleed 4 | . . . . . . . . . . . 1 . . . . . . . . . . . 2 . . . . . . . . . . . . . . . 1 . Interference 11 | . . . . . . . . . . . 3 . . . . 1 . . . . . . . 3 . . . . . . . . . . . . . . 3 1 Damage (minor) 1 | . . . . . . . . . . . . . . . . . . . . . . . . . . 1 . . . . . . . . . . . . . . Damage (major) 2 | . . . . . . . . . . . . . . . . . . . . . . . . . . . . . . . . . . . . . . . 2 . Siege Activations 23 | . . . . . . . . 2 6 1 2 . . 1 . 1 . . . 2 4 . . . . . . . . . . . . . . 1 1 . 1 1 Total Turns 388 | . . . . . . . . 20 110 3 32 . . 5 . 2 . . . 69 70 . . . . . . . . . . . . . . 3 18 . 21 35 Longest Duration 41 | . . . . . . . . 15 36 3 16 . . 5 . 2 . . . 41 28 . . . . . . . . . . . . . . 3 18 . 21 35 Robots Corrupted 4 | . . . . . . . . . . . 2 . . . . . . . . . 2 . . . . . . . . . . . . . . . . . . . Combat Hostiles 4 | . . . . . . . . . . . 2 . . . . . . . . . 2 . . . . . . . . . . . . . . . . . . . Parts Fried 25 | . . . . . . . . . . . 8 . . . . . . . . . 2 11 . . . . . . . . 2 . . . . . . . . 2 Impact Corruptions 3 | . . . . . . . . . . 2 . . . . . . . . . . . . . . . . . . . . 1 . . . . . . . . . Robots Melted 20 | . . . . . . . . . . . 1 . . . . . . . 2 3 8 . . 1 2 1 . . . . . . 1 . . . 1 . . . Combat Hostiles 20 | . . . . . . . . . . . 1 . . . . . . . 2 3 8 . . 1 2 1 . . . . . . 1 . . . 1 . . . Parts Melted 126 | . 5 1 . . . . . . . 1 9 1 . 6 . 2 . . 7 10 26 2 6 9 17 3 . . . . 2 1 5 . 3 . 7 . 3 . Heat Transferred 37586 | . 2488 296 . . . . . . . 785 4647 629 851 1270 . 554 . 300 1161 2300 6818 100 4124 1586 2571 520 185 . . . 1295 444 1295 74 370 111 777 . 1443 592 Parts Sabotaged 2 | . . . . . . . . . . . . . . . . . . . . . . . . . . . . . . . . . . . . . . . . 2 Parts Stolen 3 | . . . . . . . . . . . . . . . . . . . 3 . . . . . . . . . . . . . . . . . . . . . Parts Stripped . | . . . . . . . . . . . . . . . . . . . . . . . . . . . . . . . . . . . . . . . . . Power Chain Reactions 5 | . . . . . . . . . . 1 1 . . . . . . . . . 1 2 . . . . . . . . . . . . . . . . . . Missiles Intercepted . | . . . . . . . . . . . . . . . . . . . . . . . . . . . . . . . . . . . . . . . . . Alert | -11 -10 -10 -10 -9 -8 -8 -8 -8 -8 -8 -8 -8 -7 -7 -7 -7 -6 -6 -6 -6 -5 -5 -5 -5 -5 -5 -5 -4 -4 -4 -4 -4 -4 -3 -3 -3 -3 -2 -2 -1 ------- Run | Scr Mat Min Exi Min Mat Gar Mat Gar Mat Gar Mat Gar Fac Gar Fac Gar Fac Low Low Dat Pro Fac Gar Fac Gar Fac Gar Fac Was Fac Gar Fac Gar Res Gar Res Gar Res Gar Acc Peak Influence 2926 | 10 291 169 . . 139 904 647 1622 892 941 808 700 473 1115 609 1237 760 . . . . 475 570 693 695 469 406 293 116 249 882 542 1265 832 1391 1237 1380 819 1324 2926 Initial 927 | . 6 69 . . . 90 440 420 790 248 458 525 360 140 585 235 648 . . . . 85 172 298 408 364 322 212 102 81 174 462 276 711 566 782 927 776 614 794 Average 608 | 4 136 58 . . 34 409 522 1053 456 654 634 631 342 621 386 818 702 . . . . 249 402 446 496 443 365 237 105 162 510 475 780 733 1030 992 1217 799 893 1708 Maximum Alert Level 5 | . 1 . . . . 3 2 5 3 3 3 3 2 4 2 4 3 . . . . 2 2 2 2 2 2 1 . 1 3 2 4 3 4 4 4 3 4 5 Low Security (%) 15 | 100 65 100 . 100 100 12 . . . . . . . 8 . . . . . . . 39 8 . . . . 12 100 61 6 . . . . . . . . . Level 1 21 | . 34 . . . . 45 . . 44 20 . . 80 22 79 19 . . . . . 41 30 58 22 8 89 87 . 38 24 20 13 . . . . . . . Level 2 28 | . . . . . . 28 100 24 40 46 75 99 19 38 20 9 47 . . . . 19 60 41 77 91 10 . . . 42 79 25 15 8 . . . 23 . Level 3 23 | . . . . . . 13 . 31 15 33 24 . . 24 . 59 52 . . . . . . . . . . . . . 26 . 36 84 64 84 28 100 64 39 Level 4 6 | . . . . . . . . 17 . . . . . 6 . 10 . . . . . . . . . . . . . . . . 23 . 27 15 71 . 12 10 Level 5 1 | . . . . . . . . 26 . . . . . . . . . . . . . . . . . . . . . . . . . . . . . . . . High Security 2 | . . . . . . . . . . . . . . . . . . . . . . . . . . . . . . . . . . . . . . . . 49 Max Security . | . . . . . . . . . . . . . . . . . . . . . . . . . . . . . . . . . . . . . . . . . Squads Dispatched 78 | . 3 1 . . 2 . 1 . 2 . 6 . 4 . 1 . 2 . . . . 5 . 6 . 1 . 4 . 2 . 1 . 3 . 1 . . . 33 Investigation 14 | . 1 1 . . 1 . . . 2 . 1 . 2 . . . 2 . . . . . . 1 . . . 1 . 2 . . . . . . . . . . Extermination 4 | . . . . . . . . . . . . . 1 . . . . . . . . . . 1 . . . 1 . . . . . . . . . . . 1 Reinforcement 20 | . 2 . . . . . . . . . 2 . . . 1 . . . . . . 5 . 4 . . . 1 . . . . . 1 . 1 . . . 3 Assault 28 | . . . . . . . . . . . 2 . . . . . . . . . . . . . . . . 1 . . . . . 1 . . . . . 24 Garrison 9 | . . . . . 1 . 1 . . . 1 . 1 . . . . . . . . . . . . 1 . . . . . 1 . 1 . . . . . 2 Intercept 3 | . . . . . . . . . . . . . . . . . . . . . . . . . . . . . . . . . . . . . . . . 3 Searches Triggered . | . . . . . . . . . . . . . . . . . . . . . . . . . . . . . . . . . . . . . . . . . Construction Impeded 5 | . . . . . . . . . . . . . . . . . . . . . . 2 . 2 . . . 1 . . . . . . . . . . . . Haulers Reinforced 4 | . . . . . . . . . . . . . . . . . . . . . . 3 . . . . . . . . . . . . . 1 . . . . Active Scanning Responses . | . . . . . . . . . . . . . . . . . . . . . . . . . . . . . . . . . . . . . . . . . Cargo Convoy Interrupts . | . . . . . . . . . . . . . . . . . . . . . . . . . . . . . . . . . . . . . . . . . Stealth | -11 -10 -10 -10 -9 -8 -8 -8 -8 -8 -8 -8 -8 -7 -7 -7 -7 -6 -6 -6 -6 -5 -5 -5 -5 -5 -5 -5 -4 -4 -4 -4 -4 -4 -3 -3 -3 -3 -2 -2 -1 --------- Run | Scr Mat Min Exi Min Mat Gar Mat Gar Mat Gar Mat Gar Fac Gar Fac Gar Fac Low Low Dat Pro Fac Gar Fac Gar Fac Gar Fac Was Fac Gar Fac Gar Res Gar Res Gar Res Gar Acc Distress Signals 6 | . 2 . . . . . 1 . . . 1 . . 1 . . . . . . . . . 1 . . . . . . . . . . . . . . . . Communications Jammed 232 | . . . . . . . . . . . . . . . . . . . . . . . . . . . . . . 2 . . . 1 . 95 . . . 134 Distress Signals 229 | . . . . . . . . . . . . . . . . . . . . . . . . . . . . . . 2 . . . . . 94 . . . 133 Times Spotted 806 | . 26 7 . . 4 . 6 37 23 25 32 7 8 31 3 37 6 2 15 4 24 20 23 15 23 9 6 8 6 10 28 12 43 16 59 18 24 1 40 148 Peak Tracking Total 21 | . 3 3 . . 4 . 4 5 4 9 6 2 2 5 2 6 3 1 4 3 5 6 8 5 5 6 3 3 3 3 3 4 3 4 8 3 3 1 5 21 Tactical Retreats 18 | . 1 . . . . . . . . 1 . . . 2 . 1 . . . . . . 1 . 3 . . . . . . . . . . . . . . 9 Traps | -11 -10 -10 -10 -9 -8 -8 -8 -8 -8 -8 -8 -8 -7 -7 -7 -7 -6 -6 -6 -6 -5 -5 -5 -5 -5 -5 -5 -4 -4 -4 -4 -4 -4 -3 -3 -3 -3 -2 -2 -1 ------- Run | Scr Mat Min Exi Min Mat Gar Mat Gar Mat Gar Mat Gar Fac Gar Fac Gar Fac Low Low Dat Pro Fac Gar Fac Gar Fac Gar Fac Was Fac Gar Fac Gar Res Gar Res Gar Res Gar Acc Traps Triggered 40 | . 2 . . . . 2 . 1 3 . 1 . 3 2 . 3 . . . . . 3 . 1 3 . 1 1 . 2 1 . . 5 . . 2 . 3 1 Indirectly 4 | . . . . . . . . . . . . . . . . . . . . . . 3 . . . . . . . . . . . . . . . . . 1 Trap Hack Attempts 24 | . . . . . . . . 1 23 . . . . . . . . . . . . . . . . . . . . . . . . . . . . . . . Triggered . | . . . . . . . . . . . . . . . . . . . . . . . . . . . . . . . . . . . . . . . . . Disarmed 3 | . . . . . . . . . 3 . . . . . . . . . . . . . . . . . . . . . . . . . . . . . . . Reprogrammed 1 | . . . . . . . . 1 . . . . . . . . . . . . . . . . . . . . . . . . . . . . . . . . Reused . | . . . . . . . . . . . . . . . . . . . . . . . . . . . . . . . . . . . . . . . . . Traps Extracted . | . . . . . . . . . . . . . . . . . . . . . . . . . . . . . . . . . . . . . . . . . Installed . | . . . . . . . . . . . . . . . . . . . . . . . . . . . . . . . . . . . . . . . . . Triggered 3 | . . . . . . . . . . . . . . . . . . . . . 3 . . . . . . . . . . . . . . . . . . . Machines | -11 -10 -10 -10 -9 -8 -8 -8 -8 -8 -8 -8 -8 -7 -7 -7 -7 -6 -6 -6 -6 -5 -5 -5 -5 -5 -5 -5 -4 -4 -4 -4 -4 -4 -3 -3 -3 -3 -2 -2 -1 ---------- Run | Scr Mat Min Exi Min Mat Gar Mat Gar Mat Gar Mat Gar Fac Gar Fac Gar Fac Low Low Dat Pro Fac Gar Fac Gar Fac Gar Fac Was Fac Gar Fac Gar Res Gar Res Gar Res Gar Acc Machines Disabled 80 | . 2 1 . . 1 3 3 8 1 2 . . . 6 . 6 . . . . . 4 3 1 6 . 2 . . . 7 . 5 2 7 . 3 . 3 4 Max in Single Turn 2 | . 1 1 . . 1 1 1 2 1 1 . . . 1 . 1 . . . . . 2 1 . 1 . 1 . . . 1 . 1 . 1 . 1 . 1 1 Garrison Access 2 | . . . . . . . . . . . . . . . . . . . . . . . . . . . . 1 . . . . . 1 . . . . . . Garrison Relay 43 | . . . . . . . . 5 . 2 . . . 3 . 6 . . . . . . 2 . 2 . 2 . . . 8 . 5 . 3 . 2 . 3 . Phase Generator 1 | . . . . . . . . 1 . . . . . . . . . . . . . . . . . . . . . . . . . . . . . . . . Machines Sabotaged . | . . . . . . . . . . . . . . . . . . . . . . . . . . . . . . . . . . . . . . . . . Garrisons Compromised . | . . . . . . . . . . . . . . . . . . . . . . . . . . . . . . . . . . . . . . . . . Overloaded Fab Kills . | . . . . . . . . . . . . . . . . . . . . . . . . . . . . . . . . . . . . . . . . . Hacking | -11 -10 -10 -10 -9 -8 -8 -8 -8 -8 -8 -8 -8 -7 -7 -7 -7 -6 -6 -6 -6 -5 -5 -5 -5 -5 -5 -5 -4 -4 -4 -4 -4 -4 -3 -3 -3 -3 -2 -2 -1 --------- Run | Scr Mat Min Exi Min Mat Gar Mat Gar Mat Gar Mat Gar Fac Gar Fac Gar Fac Low Low Dat Pro Fac Gar Fac Gar Fac Gar Fac Was Fac Gar Fac Gar Res Gar Res Gar Res Gar Acc Machines Accessed 77 | . 4 2 2 . 1 3 1 2 8 4 3 1 4 1 2 3 2 1 . 4 . 1 3 2 . 1 1 4 . 3 1 2 1 3 1 1 1 1 2 1 Terminals 51 | . 4 . . . . 3 . 2 7 4 1 1 2 1 1 3 2 1 . . . . 3 1 . . 1 3 . 2 1 1 1 1 1 . 1 . 2 1 Fabricators . | . . . . . . . . . . . . . . . . . . . . . . . . . . . . . . . . . . . . . . . . . Repair Stations 2 | . . . . . . . . . . . 1 . 1 . . . . . . . . . . . . . . . . . . . . . . . . . . . Recycling Units . | . . . . . . . . . . . . . . . . . . . . . . . . . . . . . . . . . . . . . . . . . Scanalyzers . | . . . . . . . . . . . . . . . . . . . . . . . . . . . . . . . . . . . . . . . . . Garrison Access 16 | . . . . . 1 . 1 . 1 . 1 . 1 . 1 . . . . . . 1 . 1 . 1 . 1 . 1 . 1 . 2 . 1 . 1 . . Total Hacks 197 | . 19 2 2 . 2 5 1 4 26 10 9 2 12 4 4 6 5 1 . 26 . 2 6 5 . 1 2 9 . 11 2 3 2 5 1 1 1 1 3 2 Successful 111 | . 10 2 2 . 2 3 1 2 15 4 9 1 3 1 1 2 1 1 . 26 . 1 2 3 . 1 . 3 . 4 . 1 1 4 1 1 1 1 1 . Failed 85 | . 8 . . . . 2 . 2 11 6 . 1 9 3 3 4 4 . . . . 1 4 2 . . 2 6 . 7 2 2 1 1 . . . . 2 2 Catastrophic 14 | . . . . . . . . . 1 1 . . 2 . 1 2 2 . . . . 1 1 . . . 1 . . 1 1 . . . . . . . . . Database Lockouts 1 | . 1 . . . . . . . . . . . . . . . . . . . . . . . . . . . . . . . . . . . . . . . Manual 65 | . 5 . 1 . 1 . . . 21 2 2 . 7 . 2 . . . . . . 1 . 1 . . 2 5 . 9 . 2 . 2 . . . . . 2 Terminals 126 | . 19 . . . . 5 . 4 23 10 1 2 6 4 2 6 5 1 . . . . 6 2 . . 2 6 . 7 2 2 2 2 1 . 1 . 3 2 Fabricators . | . . . . . . . . . . . . . . . . . . . . . . . . . . . . . . . . . . . . . . . . . Repair Stations 10 | . . . . . . . . . . . 6 . 4 . . . . . . . . . . . . . . . . . . . . . . . . . . . Recycling Units . | . . . . . . . . . . . . . . . . . . . . . . . . . . . . . . . . . . . . . . . . . Scanalyzers . | . . . . . . . . . . . . . . . . . . . . . . . . . . . . . . . . . . . . . . . . . Garrison Access 31 | . . . . . 2 . 1 . 3 . 2 . 2 . 2 . . . . . . 2 . 3 . 1 . 3 . 4 . 1 . 3 . 1 . 1 . . Terminal Hacks 69 | . 9 2 2 . . 3 . 2 6 4 . 1 . 1 . 2 1 1 . 26 . . 2 . . . . 1 . 1 . . 1 1 1 . 1 . 1 . Record 13 | . . . 1 . . . . . . . . . . . . . . 1 . 11 . . . . . . . . . . . . . . . . . . . . Part Schematic 9 | . . . . . . . . . . . . . . . . . . . . 9 . . . . . . . . . . . . . . . . . . . . Robot Schematic 4 | . 1 . . . . . . . . . . . . . . . . . . 3 . . . . . . . . . . . . . . . . . . . . Prototype ID Bank 5 | . 1 . . . . . . . . . . . . . . . . . . 3 . . . . . . . 1 . . . . . . . . . . . . Open Door 4 | . . 2 . . . . . . . 1 . . . . . . . . . . . . . . . . . . . . . . . . 1 . . . . . Branch Access Points 2 | . 1 . . . . . . . . . . . . . . . 1 . . . . . . . . . . . . . . . . . . . . . . . Emergency Access Points 9 | . . . . . . 1 . 1 . 1 . . . 1 . 1 . . . . . . 1 . . . . . . . . . 1 . . . 1 . 1 . Terminal Index 2 | . . . . . . . . . 1 . . . . . . . . . . . . . . . . . . . . . . . . 1 . . . . . . Unreport Threat 3 | . . . . . . . . . 3 . . . . . . . . . . . . . . . . . . . . . . . . . . . . . . . Locate Traps 1 | . . . . . . . . . . . . . . . . . . . . . . . . . . . . . . 1 . . . . . . . . . . Maintenance Status 1 | . 1 . . . . . . . . . . . . . . . . . . . . . . . . . . . . . . . . . . . . . . . Hauler Manifests 2 | . 1 . . . . . . . 1 . . . . . . . . . . . . . . . . . . . . . . . . . . . . . . . Registered Components 1 | . 1 . . . . . . . . . . . . . . . . . . . . . . . . . . . . . . . . . . . . . . . Zone Layout 4 | . 3 . . . . . . . 1 . . . . . . . . . . . . . . . . . . . . . . . . . . . . . . . Garrison Registry 3 | . . . . . . . . . . 1 . 1 . . . . . . . . . . 1 . . . . . . . . . . . . . . . . . Patrol Navigation 4 | . . . . . . 1 . 1 . 1 . . . . . 1 . . . . . . . . . . . . . . . . . . . . . . . . Security Stations 1 | . . . . . . 1 . . . . . . . . . . . . . . . . . . . . . . . . . . . . . . . . . . EX-Prototype ID Bank 1 | . . . 1 . . . . . . . . . . . . . . . . . . . . . . . . . . . . . . . . . . . . . Fabricator Hacks . | . . . . . . . . . . . . . . . . . . . . . . . . . . . . . . . . . . . . . . . . . Repair Station Hacks 7 | . . . . . . . . . . . 6 . 1 . . . . . . . . . . . . . . . . . . . . . . . . . . . Scan Component 4 | . . . . . . . . . . . 3 . 1 . . . . . . . . . . . . . . . . . . . . . . . . . . . Repair 3 | . . . . . . . . . . . 3 . . . . . . . . . . . . . . . . . . . . . . . . . . . . . Recycling Unit Hacks . | . . . . . . . . . . . . . . . . . . . . . . . . . . . . . . . . . . . . . . . . . Scanalyzer . | . . . . . . . . . . . . . . . . . . . . . . . . . . . . . . . . . . . . . . . . . Garrison Access Hacks 18 | . . . . . 1 . 1 . 2 . 1 . 1 . 1 . . . . . . 1 . 2 . 1 . 1 . 1 . 1 . 2 . 1 . 1 . . Unlock Access 16 | . . . . . 1 . 1 . 1 . 1 . 1 . 1 . . . . . . 1 . 1 . 1 . 1 . 1 . 1 . 2 . 1 . 1 . . Coupler Status 2 | . . . . . . . . . 1 . . . . . . . . . . . . . . 1 . . . . . . . . . . . . . . . . Unauthorized Hacks 17 | . 1 . . . 1 . . . 7 . 2 . 1 . . . . . . . . . . 1 . . . 1 . 2 . . . 1 . . . . . . Terminals 11 | . 1 . . . . . . . 6 . 1 . . . . . . . . . . . . . . . . 1 . 1 . . . 1 . . . . . . Assimilate 2 | . . . . . . . . . 2 . . . . . . . . . . . . . . . . . . . . . . . . . . . . . . . Botnet 8 | . 1 . . . . . . . 3 . 1 . . . . . . . . . . . . . . . . 1 . 1 . . . 1 . . . . . . Operators 1 | . . . . . . . . . 1 . . . . . . . . . . . . . . . . . . . . . . . . . . . . . . . Fabricators . | . . . . . . . . . . . . . . . . . . . . . . . . . . . . . . . . . . . . . . . . . Repair Stations . | . . . . . . . . . . . . . . . . . . . . . . . . . . . . . . . . . . . . . . . . . Recycling Units . | . . . . . . . . . . . . . . . . . . . . . . . . . . . . . . . . . . . . . . . . . Scanalyzers . | . . . . . . . . . . . . . . . . . . . . . . . . . . . . . . . . . . . . . . . . . Garrison Access 6 | . . . . . 1 . . . 1 . 1 . 1 . . . . . . . . . . 1 . . . . . 1 . . . . . . . . . . Reprogram 4 | . . . . . . . . . 1 . 1 . 1 . . . . . . . . . . . . . . . . 1 . . . . . . . . . . Eject 2 | . . . . . 1 . . . . . . . . . . . . . . . . . . 1 . . . . . . . . . . . . . . . . Data Cores Recovered . | . . . . . . . . . . . . . . . . . . . . . . . . . . . . . . . . . . . . . . . . . Used . | . . . . . . . . . . . . . . . . . . . . . . . . . . . . . . . . . . . . . . . . . Hacking Detections 59 | . 4 . . . . 3 1 2 7 4 2 . 4 1 2 3 2 1 . . . 1 2 1 . . 1 4 . 2 1 2 1 2 . 1 1 1 2 1 Full Trace Events 8 | . . . . . . . . 1 . 1 . . 1 . . 1 2 . . . . . . . . . . 1 . 1 . . . . . . . . . . Feedback Events . | . . . . . . . . . . . . . . . . . . . . . . . . . . . . . . . . . . . . . . . . . Feedback Blocked . | . . . . . . . . . . . . . . . . . . . . . . . . . . . . . . . . . . . . . . . . . Robot Schematics Acquired 4 | . 1 . . . . . . . . . . . . . . . . . . 3 . . . . . . . . . . . . . . . . . . . . Robots Built . | . . . . . . . . . . . . . . . . . . . . . . . . . . . . . . . . . . . . . . . . . Authchips . | . . . . . . . . . . . . . . . . . . . . . . . . . . . . . . . . . . . . . . . . . Time . | . . . . . . . . . . . . . . . . . . . . . . . . . . . . . . . . . . . . . . . . . Total Robot Build Rating . | . . . . . . . . . . . . . . . . . . . . . . . . . . . . . . . . . . . . . . . . . Part Schematics Acquired 9 | . . . . . . . . . . . . . . . . . . . . 9 . . . . . . . . . . . . . . . . . . . . Parts Built . | . . . . . . . . . . . . . . . . . . . . . . . . . . . . . . . . . . . . . . . . . Authchips . | . . . . . . . . . . . . . . . . . . . . . . . . . . . . . . . . . . . . . . . . . Time . | . . . . . . . . . . . . . . . . . . . . . . . . . . . . . . . . . . . . . . . . . Total Part Build Rating . | . . . . . . . . . . . . . . . . . . . . . . . . . . . . . . . . . . . . . . . . . Parts Repaired 3 | . . . . . . . . . . . 3 . . . . . . . . . . . . . . . . . . . . . . . . . . . . . Time 156 | . . . . . . . . . . . 156 . . . . . . . . . . . . . . . . . . . . . . . . . . . . . Parts Recycled . | . . . . . . . . . . . . . . . . . . . . . . . . . . . . . . . . . . . . . . . . . Recycled Matter . | . . . . . . . . . . . . . . . . . . . . . . . . . . . . . . . . . . . . . . . . . Retrieved Matter . | . . . . . . . . . . . . . . . . . . . . . . . . . . . . . . . . . . . . . . . . . Retrieved Components . | . . . . . . . . . . . . . . . . . . . . . . . . . . . . . . . . . . . . . . . . . Parts Scanalyzed . | . . . . . . . . . . . . . . . . . . . . . . . . . . . . . . . . . . . . . . . . . Part Schematics Acquired . | . . . . . . . . . . . . . . . . . . . . . . . . . . . . . . . . . . . . . . . . . Parts Damaged . | . . . . . . . . . . . . . . . . . . . . . . . . . . . . . . . . . . . . . . . . . Bothacking | -11 -10 -10 -10 -9 -8 -8 -8 -8 -8 -8 -8 -8 -7 -7 -7 -7 -6 -6 -6 -6 -5 -5 -5 -5 -5 -5 -5 -4 -4 -4 -4 -4 -4 -3 -3 -3 -3 -2 -2 -1 ------------ Run | Scr Mat Min Exi Min Mat Gar Mat Gar Mat Gar Mat Gar Fac Gar Fac Gar Fac Low Low Dat Pro Fac Gar Fac Gar Fac Gar Fac Was Fac Gar Fac Gar Res Gar Res Gar Res Gar Acc Used RIF Installer 15 | . . . . . . . . 1 . 1 . 1 . 1 . 1 . . . . . . 1 . 1 . 1 . . . 1 . 2 . 1 . 1 . 2 . Coupler Efficiency 2 | . . . . . . . . . . . . . . . . 1 . . . . . . . . . . 1 . . . . . . . . . . . . . Hotswap 1 | . . . . . . . . . . . . . . . . . . . . . . . 1 . . . . . . . . . . . . . . . . . Code Merge 2 | . . . . . . . . . . . . . . . . . . . . . . . . . . . . . . . . . 1 . 1 . . . . . Command Fork 1 | . . . . . . . . . . 1 . . . . . . . . . . . . . . . . . . . . . . . . . . . . . . Threat Obfuscator 1 | . . . . . . . . . . . . . . 1 . . . . . . . . . . . . . . . . . . . . . . . . . . Signal Jammer 1 | . . . . . . . . . . . . . . . . . . . . . . . . . . . . . . . 1 . . . . . . . . . Zone Cloak 1 | . . . . . . . . . . . . . . . . . . . . . . . . . 1 . . . . . . . . . . . . . . . Watcher Feeds 1 | . . . . . . . . . . . . 1 . . . . . . . . . . . . . . . . . . . . . . . . . . . . Patrol Navigation 1 | . . . . . . . . . . . . . . . . . . . . . . . . . . . . . . . . . . . . . . . 1 . Program Shield 1 | . . . . . . . . . . . . . . . . . . . . . . . . . . . . . . . . . . . . . 1 . . . Autooverride 1 | . . . . . . . . . . . . . . . . . . . . . . . . . . . . . . . . . . . . . . . 1 . Crosswire 1 | . . . . . . . . . . . . . . . . . . . . . . . . . . . . . . . . . 1 . . . . . . . Robots Hacked 190 | . . . . . . . . 6 2 1 . . 1 3 3 11 3 . 4 1 . 1 3 . 6 2 3 4 5 3 13 7 17 10 29 8 7 1 15 21 Non-combat 16 | . . . . . . . . . . . . . 1 . 2 . . . . . . . . . . . . 1 . 1 . 3 . 3 . 2 . . . 3 Combat 174 | . . . . . . . . 6 2 1 . . . 3 1 11 3 . 4 1 . 1 3 . 6 2 3 3 5 2 13 4 17 7 29 6 7 1 15 18 Autooverrided 8 | . . . . . . . . . . . . . . . . . . . . . . . . . . . . . . . . . . . . . . . 1 7 Robot Hacks Applied 193 | . . . . . . . . 6 3 1 . . 1 4 5 11 4 . 4 1 . 1 3 . 6 2 3 4 5 4 14 8 18 10 30 8 7 1 15 14 parse_system 7 | . . . . . . . . . . . . . . . . . 1 . . 1 . . . . . . . . . . 2 1 1 . 1 . . . . . find_chute 1 | . . . . . . . . . . . . . . . . . . . . . . . . . . . . 1 . . . . . . . . . . . . drop_inventory 7 | . . . . . . . . . . . . . . . 1 . . . . . . . . . . . . . . . . 2 . 2 . 1 . . . 1 purge_threat 2 | . . . . . . . . . . . . . . . 2 . . . . . . . . . . . . . . . . . . . . . . . . . map_route 3 | . . . . . . . . . . . . . . . . . . . . . . . . . . . . . . 1 . . . 1 . . . . . 1 ignore_targets 5 | . . . . . . . . . . . . . . . . . . . . . . . . . . . . . 5 . . . . . . . . . . . find_shortcuts 2 | . . . . . . . . . . . . . . 1 . 1 . . . . . . . . . . . . . . . . . . . . . . . . find_garrison 2 | . . . . . . . . . 1 . . . . . 1 . . . . . . . . . . . . . . . . . . . . . . . . . disrupt_area 1 | . . . . . . . . . . . . . . . . . . . . . . . . . . . . . . . . . . . . . . . 1 . overload_power 1 | . . . . . . . . . . . . . . . . . . . . . . . . . . . . . . 1 . . . . . . . . . . amplify_resonance 4 | . . . . . . . . . . . . . . . . . . . . . . . 1 . . . . . . . . 1 . . 1 . 1 . . . reboot_system 7 | . . . . . . . . . 1 . . . . . . 1 . . . . . . . . . . . . . 1 1 1 1 . . . . . . 1 overwrite_iff 45 | . . . . . . . . 1 . 1 . . . 3 . 2 . . . . . . 2 . 3 2 1 2 . . 3 . 3 . 13 1 2 . 5 1 formatsys_low 3 | . . . . . . . . . . . . . 1 . . . . . . . . . . . . . . . . . . . . . . 1 . . . 1 formatsys_high 102 | . . . . . . . . 5 1 . . . . . 1 7 3 . 4 . . 1 . . 3 . 2 1 . 1 8 3 13 7 15 5 4 1 9 8 formatsys_deep 1 | . . . . . . . . . . . . . . . . . . . . . . . . . . . . . . . . . . . . . . . . 1 Relay Couplers Released 185 | . . . . . 3 . . 23 . 8 . . . 12 . 27 . . . . . . 8 4 7 . 9 1 . . 33 3 18 2 9 . 8 . 10 . Ejected 7 | . . . . . 3 . . . . . . . . . . . . . . . . . . 4 . . . . . . . . . . . . . . . . Machine Destruction 175 | . . . . . . . . 23 . 8 . . . 12 . 27 . . . . . . 8 . 7 . 9 1 . . 33 . 18 2 9 . 8 . 10 . Programmers 3 | . . . . . . . . . . . . . . . . . . . . . . . . . . . . . . . . 3 . . . . . . . . Attached 64 | . . . . . . . . 3 1 1 . . 1 1 1 6 . . 1 . . 1 2 . 3 . 4 . 1 . 6 4 4 1 5 1 5 1 6 5 Crosswired 21 | . . . . . . . . . . . . . . . . . . . . . . . . . . . . . . . . . 13 . 4 . 3 . 1 . Merged Code Value 206 | . . . . . . . . . . . . . . . . . . . . . . . . . . . . . . . . . 141 . 36 . . . 29 . Fabnet Peak Effective % . | . . . . . . . . . . . . . . . . . . . . . . . . . . . . . . . . . . . . . . . . . Robots Rewired 30 | . . . . . . 3 . . . 3 . 6 . . . . . . . . . . 4 . 5 . . . . . . . 2 . 7 . . . . . Allies Hacked 5 | . . . . . . . . . . . . . . . . . . . . . . . . . . . . 1 . . . . . . 2 2 . . . . Hacks Repelled . | . . . . . . . . . . . . . . . . . . . . . . . . . . . . . . . . . . . . . . . . . Allies | -11 -10 -10 -10 -9 -8 -8 -8 -8 -8 -8 -8 -8 -7 -7 -7 -7 -6 -6 -6 -6 -5 -5 -5 -5 -5 -5 -5 -4 -4 -4 -4 -4 -4 -3 -3 -3 -3 -2 -2 -1 -------- Run | Scr Mat Min Exi Min Mat Gar Mat Gar Mat Gar Mat Gar Fac Gar Fac Gar Fac Low Low Dat Pro Fac Gar Fac Gar Fac Gar Fac Was Fac Gar Fac Gar Res Gar Res Gar Res Gar Acc Total Allies 242 | . . . . . . 3 . 6 5 5 2 6 2 5 1 13 3 . 4 . . 1 7 . 14 2 4 4 . 5 16 5 22 8 43 7 8 1 15 25 Largest Group 19 | . . . . . . 3 3 3 4 4 4 6 5 5 1 8 9 9 7 1 . 1 4 4 5 5 4 4 2 5 7 7 12 11 19 14 12 2 4 9 Highest-Rated Group 951 | . . . . . . 53 53 48 63 97 97 60 99 202 32 265 270 270 210 29 . 49 203 203 296 134 98 194 98 237 333 378 717 769 951 724 671 201 356 870 Highest-Rated Ally 178 | . . . . . . 21 21 16 16 25 25 16 32 95 32 62 59 59 59 29 . 49 116 116 148 49 49 49 49 49 58 137 137 137 137 137 137 137 137 178 Total Orders 40 | . . . . . . . . . 1 . . 2 10 . 7 . . . . . . . . . . . . . . . . . . . . 2 4 . 4 10 STAY 26 | . . . . . . . . . 1 . . 1 7 . 6 . . . . . . . . . . . . . . . . . . . . . 1 . 2 8 FOLLOW 10 | . . . . . . . . . . . . 1 2 . 1 . . . . . . . . . . . . . . . . . . . . . 2 . 2 2 AID 4 | . . . . . . . . . . . . . 1 . . . . . . . . . . . . . . . . . . . . . . 2 1 . . . Ally Attacks 1684 | . . . . . . . 28 29 4 29 20 16 17 78 1 118 24 23 34 5 . 5 16 54 45 43 9 15 7 13 90 26 108 56 177 94 108 5 94 293 Total Damage 53725 | . . . . . . . 457 395 102 331 316 152 310 2995 23 3199 477 416 497 61 . 123 589 2103 1409 846 170 477 360 610 2197 790 4035 1638 5651 2893 3681 286 4304 11832 Kills 323 | . . . . . . . 4 8 . 5 3 2 6 20 . 23 4 3 6 . . 1 4 14 4 5 2 2 1 4 15 6 27 8 28 15 14 1 22 66 Allies Corrupted 15 | . . . . . . . . . . . . . . . . . . . . . . . . . . . . . 1 . . . . . . 3 1 . 2 8 Allies Melted 3 | . . . . . . . . . . . . . . . . . . . . . . . . . . . . . . . . . 1 . 1 . 1 . . . Intel | -11 -10 -10 -10 -9 -8 -8 -8 -8 -8 -8 -8 -8 -7 -7 -7 -7 -6 -6 -6 -6 -5 -5 -5 -5 -5 -5 -5 -4 -4 -4 -4 -4 -4 -3 -3 -3 -3 -2 -2 -1 ------- Run | Scr Mat Min Exi Min Mat Gar Mat Gar Mat Gar Mat Gar Fac Gar Fac Gar Fac Low Low Dat Pro Fac Gar Fac Gar Fac Gar Fac Was Fac Gar Fac Gar Res Gar Res Gar Res Gar Acc Robot Analysis Total 131 | . . . . . . . . . . . . . . . . . . . . 131 . . . . . . . . . . . . . . . . . . . . Derelict Logs Recovered 9 | . . 2 . 1 . . . . . . . . . . . . . 3 2 . 1 . . . . . . . . . . . . . . . . . . . Drone Launches 6 | . . . . . . . . . . . 6 . . . . . . . . . . . . . . . . . . . . . . . . . . . . . Drone Recoveries 2 | . . . . . . . . . . . 2 . . . . . . . . . . . . . . . . . . . . . . . . . . . . . Exploration | -11 -10 -10 -10 -9 -8 -8 -8 -8 -8 -8 -8 -8 -7 -7 -7 -7 -6 -6 -6 -6 -5 -5 -5 -5 -5 -5 -5 -4 -4 -4 -4 -4 -4 -3 -3 -3 -3 -2 -2 -1 ------------- Run | Scr Mat Min Exi Min Mat Gar Mat Gar Mat Gar Mat Gar Fac Gar Fac Gar Fac Low Low Dat Pro Fac Gar Fac Gar Fac Gar Fac Was Fac Gar Fac Gar Res Gar Res Gar Res Gar Acc Turns Passed 32893 | 147 1223 1139 750 979 222 1588 193 1644 1627 1066 1188 594 1264 1041 357 1242 333 1156 1800 438 654 476 860 459 735 208 386 355 67 382 1247 506 1104 652 1395 265 745 130 1120 1156 Spaces Moved 16561 | 65 560 582 312 406 72 943 89 837 678 556 588 294 718 507 154 632 186 669 1011 174 255 224 452 271 396 124 241 258 59 221 594 272 543 235 650 99 339 55 570 670 Core 201 | 4 . . . . . . . . . . . . . . . . . . . . . . . . . . . . . . . . . . . . . . . 197 Treads 13662 | 61 560 582 312 406 72 943 89 837 678 556 259 101 718 507 154 632 186 669 1011 174 195 . . . . . . . . 134 594 272 543 235 650 99 339 55 570 469 Legs 1726 | . . . . . . . . . . . . . . . . . . . . . 60 224 452 271 391 86 139 99 . . . . . . . . . . . 4 Wheels 972 | . . . . . . . . . . . 329 193 . . . . . . . . . . . . 5 38 102 159 59 87 . . . . . . . . . . Hover . | . . . . . . . . . . . . . . . . . . . . . . . . . . . . . . . . . . . . . . . . . Flight . | . . . . . . . . . . . . . . . . . . . . . . . . . . . . . . . . . . . . . . . . . Fastest Speed 50 | 50 160 160 240 240 160 160 158 158 160 160 120 145 160 160 170 170 170 170 170 170 170 120 120 120 120 120 120 95 95 95 160 160 160 160 163 163 158 158 155 50 Average Speed 159 | 153 160 174 240 240 160 160 159 159 160 160 148 150 160 174 170 170 170 170 170 170 180 127 121 125 123 140 141 111 97 135 160 160 160 162 163 163 160 158 156 123 Slowest Speed 270 | 160 160 240 240 240 160 160 162 160 160 160 240 166 160 270 170 170 170 170 170 170 240 260 190 190 215 190 190 125 110 160 160 160 160 163 163 163 163 158 235 158 Overloaded Moves . | . . . . . . . . . . . . . . . . . . . . . . . . . . . . . . . . . . . . . . . . . Propulsion Burnouts . | . . . . . . . . . . . . . . . . . . . . . . . . . . . . . . . . . . . . . . . . . Robots Hopped . | . . . . . . . . . . . . . . . . . . . . . . . . . . . . . . . . . . . . . . . . . Cave-ins Triggered 2 | . . . . . . . . . 2 . . . . . . . . . . . . . . . . . . . . . . . . . . . . . . . Exploration Rate (%) 45 | 5 75 79 63 94 7 95 17 93 56 72 32 41 18 70 10 90 6 79 87 80 40 8 65 9 51 6 37 9 66 13 84 14 72 16 71 9 52 3 65 26 Regions Visited 40 Branch Regions 7 Pre-discovered Areas 33 | . . 1 1 1 . . . . . . . . . . . . . . 1 29 . . . . . . . . . . . . . . . . . . . . Known Exits Taken 21 | . 1 1 1 1 1 . 1 . 1 . 1 . 1 . 1 . 1 1 1 . . 1 . 1 . 1 . . . 1 . 1 . 1 . 1 . 1 . . Unknown Exits Taken 3 | 1 . . . . . . . . . . . . . . . . . . . 1 1 . . . . . . . . . . . . . . . . . . . Scrap Searched 11 | . . 1 . 2 . . . . . . . . . . . . . 3 5 . . . . . . . . . . . . . . . . . . . . . Spaces Dug 199 | . . . . . . . 1 24 15 6 . 15 1 34 4 . 1 . 1 . 23 . 2 18 3 2 . 1 . 4 25 . . 1 12 . . . 1 5 Terrain Destroyed 558 | . . 1 . . 1 . 6 93 34 69 17 15 1 117 4 6 1 . 4 . 45 54 2 18 6 3 . 1 . 6 25 . . 1 17 1 . . 2 8 Melee 105 | . . . . . . . 1 24 1 6 . 15 1 . . . . . . . . . 2 16 3 2 . 1 . 2 18 . . 1 12 . . . . . Projectile 100 | . . 1 . . 1 . 5 . 33 . 8 . . 2 4 6 1 . 4 . 1 3 . 2 3 1 . . . 4 7 . . . 5 . . . 2 7 AOE 351 | . . . . . . . . 69 . 63 9 . . 115 . . . . . . 44 51 . . . . . . . . . . . . . . . . . . Terrain Rammed . | . . . . . . . . . . . . . . . . . . . . . . . . . . . . . . . . . . . . . . . . . Walls Destroyed . | . . . . . . . . . . . . . . . . . . . . . . . . . . . . . . . . . . . . . . . . . Machines Disabled . | . . . . . . . . . . . . . . . . . . . . . . . . . . . . . . . . . . . . . . . . . Actions | -11 -10 -10 -10 -9 -8 -8 -8 -8 -8 -8 -8 -8 -7 -7 -7 -7 -6 -6 -6 -6 -5 -5 -5 -5 -5 -5 -5 -4 -4 -4 -4 -4 -4 -3 -3 -3 -3 -2 -2 -1 --------- Run | Scr Mat Min Exi Min Mat Gar Mat Gar Mat Gar Mat Gar Fac Gar Fac Gar Fac Low Low Dat Pro Fac Gar Fac Gar Fac Gar Fac Was Fac Gar Fac Gar Res Gar Res Gar Res Gar Acc Total 21259 | 85 751 653 315 410 170 1012 127 1025 1111 670 797 392 809 613 241 790 200 686 1080 295 439 343 656 346 565 147 280 311 67 281 780 330 724 497 906 184 479 97 715 880 Wait 1687 | . 98 11 . . 84 13 10 27 320 10 94 11 59 25 69 55 2 8 19 46 56 9 8 16 40 . 18 14 . 14 16 15 37 239 46 55 41 38 34 30 Move 16520 | 64 559 581 311 405 71 942 88 836 677 555 587 292 717 505 153 630 185 668 1010 173 254 224 451 270 395 124 239 258 58 220 592 272 542 235 649 99 337 55 568 669 Hop . | . . . . . . . . . . . . . . . . . . . . . . . . . . . . . . . . . . . . . . . . . Pick Up 228 | 2 9 8 3 2 4 4 3 10 3 11 9 . 2 8 . 12 2 . 5 5 5 10 10 4 8 1 3 4 . 7 13 6 12 1 12 1 11 . 10 8 Fast Attach 196 | 7 1 4 . . 1 1 3 5 3 6 16 3 6 8 3 3 2 . 1 1 1 18 8 3 12 2 1 6 . 4 7 2 5 3 10 . 7 . 10 23 Attach 112 | . 1 . . 2 3 . . 6 1 9 . . 1 2 . 6 1 . 1 4 3 11 5 2 7 3 1 2 . 2 1 4 6 1 5 . 6 1 3 12 Detach 63 | . . 2 . . . 1 1 4 1 3 . . . 3 . 6 . . . 1 . 3 5 . 4 3 . 1 1 2 . 3 6 . 2 . 4 . . 7 Swap 245 | . 6 6 . . 1 2 5 13 7 3 11 5 2 2 2 9 . 4 7 5 6 6 13 8 18 2 4 5 2 10 13 6 5 2 14 5 16 2 9 9 Drop 226 | . 4 6 1 . 1 5 7 13 3 7 19 5 5 8 3 8 1 . 2 1 3 8 8 4 10 1 3 4 1 4 18 4 12 1 13 1 13 . 6 13 Fire 1401 | 12 66 31 . . 4 12 9 44 64 17 60 13 12 50 11 59 7 6 35 41 111 54 75 17 58 7 10 10 5 11 61 15 69 14 85 23 44 1 74 104 Melee 283 | . . . . . . . 1 63 7 33 . 34 4 2 . . . . . 18 . . 8 17 9 3 1 7 . 6 38 . . 1 31 . . . . . Ram 1 | . . . . . . . . . . . 1 . . . . . . . . . . . . . . . . . . . . . . . . . . . . . Kick 2 | . . . . . . . . . . . . . . . . . . . . . . . 1 . . 1 . . . . . . . . . . . . . . Crush 61 | . 7 4 . 1 1 2 . . 2 . . . 1 . . 1 . . . . . . . . . . . . . 1 21 3 . . 14 . . . . 3 Escape Stasis 5 | . . . . . . . . . . . . . . . . . . . . . . . . 5 . . . . . . . . . . . . . . . . Rewire 205 | . . . . . . 30 . 3 . 16 . 29 . . . 1 . . . . . . 64 . 4 . . . . . . . 30 . 25 . . . 1 2 Trap 24 | . . . . . . . . 1 23 . . . . . . . . . . . . . . . . . . . . . . . . . . . . . . . Miscellaneous . | . . . . . . . . . . . . . . . . . . . . . . . . . . . . . . . . . . . . . . . . . Route ------- -11/Scrapyard -10/Materials (discovered 4 exits: *Mat x2 / *Min x2) -10/Mines (discovered 3 exits: *Mat x2 / *Exi) -10/Exiles -9/Mines (discovered 2 exits: *Mat x2) -8/Materials (discovered 2 exits: Fac / Gar) -8/Garrison (discovered 3 exits: *Mat x3) -8/Materials -8/Garrison (discovered 4 exits: *Mat x4) -8/Materials (discovered 3 exits: *Fac x2 / Gar) -8/Garrison (discovered 4 exits: *Fac x3 / *Mat) -8/Materials (discovered 2 exits: *Fac / Gar) -8/Garrison (discovered 3 exits: *Fac x3) -7/Factory (discovered 2 exits: [*Low] / Gar) -7/Garrison (discovered 2 exits: *Fac x2) -7/Factory -7/Garrison (discovered 3 exits: *Fac x3) -6/Factory (discovered 2 exits: *Low x2) -6/Lower Caves -6/Lower Caves (discovered 2 exits: *Fac / *Dat) -6/Data Miner -5/Proximity Caves -5/Factory (discovered 4 exits: Fac x2 / Upp / Gar) -5/Garrison (discovered 4 exits: *Fac x4) -5/Factory -5/Garrison (discovered 2 exits: *Fac / *Fac) -5/Factory -5/Garrison -4/Factory (discovered 2 exits: *Upp x2) -4/Waste -4/Factory (discovered 3 exits: *Res / *Upp / Gar) -4/Garrison (discovered 3 exits: *Fac x3) -4/Factory (discovered 2 exits: *Res / Gar) -4/Garrison (discovered 2 exits: *Res x2) -3/Research -3/Garrison (discovered 3 exits: *Res x3) -3/Research -3/Garrison -2/Research -2/Garrison (discovered 2 exits: *Acc x2) -1/Access To Epsilon Eridani History --------- Turn | Location | Event 11 | -11/Scrapyard | Discovered new exit (range 16) 148 | -11/Scrapyard | Entered Materials 301 | -10/Materials | Build established: Mutant 594 | -10/Materials | Identified exit to Mines 689 | -10/Materials | Central database locked down 805 | -10/Materials | Build established: Scavenger-Mutant 861 | -10/Materials | Discovered new exit (range 11) 1166 | -10/Materials | Discovered new exit (range 16) 1371 | -10/Materials | Entered Mines 1540 | -10/Mines | Discovered new exit (range 5) 1571 | -10/Mines | Core integrity fell below 50% 1610 | -10/Mines | Discovered new exit (range 8) 1741 | -10/Mines | Found the Drone Emporium 1751 | -10/Mines | Found Prototype Device 1751 | -10/Mines | Identified Splice Drone Bay 1816 | -10/Mines | Met a Derelict shopkeep closing up shop 1894 | -10/Mines | Learned location of 1 exit from Materials 1986 | -10/Mines | Identified exit to Materials 2137 | -10/Mines | Deemed a non-threat by the Exiles lab entrance 2137 | -10/Mines | Discovered new exit (range 5) 2141 | -10/Mines | Identified exit to Exiles 2179 | -10/Mines | Received a Rocket Launcher from a helpful Derelict 2237 | -10/Mines | Found a damaged Exp. Sensor Array with a note attached 2242 | -10/Mines | Found Prototype Device 2281 | -10/Mines | Build established: Mutant 2344 | -10/Mines | Learned location of Zion (-7) 2510 | -10/Mines | Entered Exiles 2575 | -10/Exiles | Met 8R-AWN 2609 | -10/Exiles | Met EX-HEX 2705 | -10/Exiles | Met EX-DEC 2765 | -10/Exiles | Met EX-BIN 2897 | -10/Exiles | Aligned with FarCom system 2899 | -10/Exiles | Given EX-Vault access code 2954 | -10/Exiles | Opened EX-Vault 2969 | -10/Exiles | Found Longsword +1 2972 | -10/Exiles | Found AWS/Thermal 2979 | -10/Exiles | Found YOLO Cannon 3028 | -10/Exiles | Warned to stay clear of 0b10 Research branches 3239 | -10/Exiles | Discovered new exit (range 10) 3258 | -10/Exiles | Identified exit to Mines 3260 | -10/Exiles | Stole three prototypes: AWS/Thermal, Longsword +1, YOLO Cannon 3260 | -10/Exiles | Entered Mines 3288 | -9/Mines | Met a Derelict bent on vengeance 3296 | -9/Mines | Learned Materials stockpile data 3535 | -9/Mines | Discovered new exit (range 13) 3561 | -9/Mines | Identified exit to Materials 3576 | -9/Mines | Learned location of Storage (-7) 3887 | -9/Mines | Discovered exit to Materials (range 6) 4239 | -9/Mines | Entered Materials 4239 | -8/Materials | Evolved 4 slots: Propulsion x2, Utility x1, Weapon x1 4240 | -8/Materials | Identified exit to Factory 4241 | -8/Materials | Identified Exp. Sensor Array 4390 | -8/Materials | Garrison activated, responded to threat 4452 | -8/Materials | Identified exit to Garrison 4461 | -8/Materials | Entered Garrison 4461 | -8/Garrison | Discovered recently destroyed garrison 4481 | -8/Garrison | Heavy support dispatched to Materials 4864 | -8/Garrison | Discovered new exit (range 9) 4877 | -8/Garrison | Identified exit to Materials 5123 | -8/Garrison | Discovered exit to Materials (range 10) 5294 | -8/Garrison | Discovered exit to Materials (range 9) 5602 | -8/Garrison | Learned Materials security intel 6049 | -8/Garrison | Entered Materials 6049 | -8/Materials | Accompanied by 3 allies 6162 | -8/Materials | Garrison activated, responded to threat 6237 | -8/Materials | Identified exit to Garrison 6242 | -8/Materials | Entered Garrison 6242 | -8/Garrison | Accompanied by 2 allies 6326 | -8/Garrison | Triggered checkpoint 6384 | -8/Garrison | Garrison Relay disabled 6416 | -8/Garrison | Installed Relay Interface Framework 6517 | -8/Garrison | Phase Generator disabled 6564 | -8/Garrison | Triggered checkpoint 6640 | -8/Garrison | Triggered checkpoint 6932 | -8/Garrison | Discovered new exit (range 10) 6972 | -8/Garrison | Triggered checkpoint 6979 | -8/Garrison | Discovered new exit (range 6) 7096 | -8/Garrison | Triggered checkpoint 7116 | -8/Garrison | Triggered checkpoint 7201 | -8/Garrison | Discovered new exit (range 13) 7266 | -8/Garrison | Triggered checkpoint 7286 | -8/Garrison | Garrison Relay disabled 7438 | -8/Garrison | P-60 Hacker assimilated allied Defender 3a 7450 | -8/Garrison | Garrison Relay disabled 7453 | -8/Garrison | Garrison Relay disabled 7456 | -8/Garrison | Garrison Relay disabled 7558 | -8/Garrison | Triggered checkpoint 7625 | -8/Garrison | Discovered new exit (range 3) 7886 | -8/Garrison | Entered Materials 8953 | -8/Materials | Discovered exit to Factory (range 22) 8993 | -8/Materials | Build established: Bothacker-Skirmisher 9210 | -8/Materials | Discovered exit to Factory (range 21) 9348 | -8/Materials | Identified exit to Garrison 9451 | -8/Materials | Crushed by falling debris 9453 | -8/Materials | Crushed by falling debris 9513 | -8/Materials | Entered Garrison 9513 | -8/Garrison | Accompanied by 3 allies 9580 | -8/Garrison | Triggered checkpoint 9624 | -8/Garrison | Garrison Relay disabled 9724 | -8/Garrison | Triggered checkpoint 9795 | -8/Garrison | Lost 5 parts (1p1n3w) 9796 | -8/Garrison | Triggered checkpoint 9859 | -8/Garrison | Lost 3 parts (1u2w) 9969 | -8/Garrison | Discovered exit to Factory (range 12) 9969 | -8/Garrison | Discovered exit to Factory (range 43) 9969 | -8/Garrison | Discovered exit to Factory (range 61) 9969 | -8/Garrison | Discovered new exit (range 20) 10030 | -8/Garrison | Build established: Mutant 10088 | -8/Garrison | Expanded RIF knowledge: Command Fork 10236 | -8/Garrison | Rescued a captive Derelict 10302 | -8/Garrison | Garrison Relay disabled 10326 | -8/Garrison | Triggered checkpoint 10434 | -8/Garrison | Triggered checkpoint 10579 | -8/Garrison | Entered Materials 10579 | -8/Materials | Accompanied by 4 allies 10979 | -8/Materials | First assault squad dispatched 11222 | -8/Materials | Discovered exit to Factory (range 15) 11421 | -8/Materials | Core integrity fell below 50% 11479 | -8/Materials | Destroyed 9 combat bots 11596 | -8/Materials | Repaired Imp. Heavy Treads? 11662 | -8/Materials | Repaired Wave Gun 11696 | -8/Materials | Identified exit to Garrison 11705 | -8/Materials | Repaired Arm. Treads? 11745 | -8/Materials | Garrison activated, responded to threat 11767 | -8/Materials | Entered Garrison 11767 | -8/Garrison | Accompanied by 2 allies 11821 | -8/Garrison | Discovered exit to Factory (range 66) 11821 | -8/Garrison | Discovered exit to Factory (range 64) 11821 | -8/Garrison | Discovered exit to Factory (range 43) 11934 | -8/Garrison | Triggered checkpoint 11974 | -8/Garrison | Triggered checkpoint 12040 | -8/Garrison | Triggered checkpoint 12262 | -8/Garrison | Expanded RIF knowledge: Watcher Feeds 12320 | -8/Garrison | Triggered checkpoint 12361 | -8/Garrison | Entered Factory 12361 | -7/Factory | Accompanied by 3 allies 12361 | -7/Factory | Evolved 2 slots: Utility x2 12363 | -7/Factory | FarCom data flow suspended 12806 | -7/Factory | Discovered new exit (range 12) 12816 | -7/Factory | Build established: Hacker-Mutant 13456 | -7/Factory | Identified exit to Garrison 13480 | -7/Factory | Build established: Bothacker-Mutant 13625 | -7/Factory | Entered Garrison 13625 | -7/Garrison | Accompanied by 5 allies 13708 | -7/Garrison | Triggered checkpoint 13730 | -7/Garrison | Found embedded Infiltrators 13753 | -7/Garrison | Garrison Relay disabled 13860 | -7/Garrison | Triggered checkpoint 13946 | -7/Garrison | Triggered checkpoint 13983 | -7/Garrison | Expanded RIF knowledge: Threat Obfuscation 14008 | -7/Garrison | Discovered new exit (range 10) 14070 | -7/Garrison | Triggered checkpoint 14128 | -7/Garrison | Spotted B-75 Beast 14170 | -7/Garrison | Lost 3 parts (1p1u1w) 14268 | -7/Garrison | Found Quantum Capacitor 14436 | -7/Garrison | Garrison Relay disabled 14507 | -7/Garrison | Discovered new exit (range 14) 14602 | -7/Garrison | Garrison Relay disabled 14666 | -7/Garrison | Entered Factory 15012 | -7/Factory | Identified exit to Garrison 15023 | -7/Factory | Entered Garrison 15023 | -7/Garrison | Accompanied by 1 ally 15066 | -7/Garrison | Triggered checkpoint 15088 | -7/Garrison | Garrison Relay disabled 15114 | -7/Garrison | Found embedded Infiltrators 15256 | -7/Garrison | Triggered checkpoint 15458 | -7/Garrison | Expanded RIF knowledge: Coupler Efficiency 15539 | -7/Garrison | Discovered new exit (range 4) 15560 | -7/Garrison | Triggered checkpoint 15598 | -7/Garrison | Garrison Relay disabled 15743 | -7/Garrison | Garrison Relay disabled 15781 | -7/Garrison | Garrison Relay disabled 15842 | -7/Garrison | Garrison Relay disabled 15917 | -7/Garrison | Discovered new exit (range 14) 16064 | -7/Garrison | Triggered checkpoint 16118 | -7/Garrison | Triggered checkpoint 16152 | -7/Garrison | Garrison Relay disabled 16209 | -7/Garrison | Discovered new exit (range 10) 16265 | -7/Garrison | Entered Factory 16265 | -6/Factory | Accompanied by 6 allies 16265 | -6/Factory | Evolved 2 slots: Power x1, Utility x1 16431 | -6/Factory | Identified exit to Lower Caves 16598 | -6/Factory | Entered Lower Caves 16598 | -6/Lower Caves | Accompanied by 9 allies 16759 | -6/Lower Caves | Encountered a Warlord checkpoint 16972 | -6/Lower Caves | Spotted B-75 Beast 16978 | -6/Lower Caves | Allies destroyed B-75 Beast 16999 | -6/Lower Caves | Learned Factory emergency access door positions 17164 | -6/Lower Caves | Learned Factory emergency access door positions 17208 | -6/Lower Caves | Discovered new exit (range 10) 17225 | -6/Lower Caves | Identified exit to Lower Caves 17410 | -6/Lower Caves | Learned 8 Factory zone layouts 17754 | -6/Lower Caves | Entered another Lower Caves area 17754 | -6/Lower Caves | Accompanied by 6 allies 17878 | -6/Lower Caves | Discovered new exit (range 10) 18785 | -6/Lower Caves | Spotted VA-OQ6(f) 18786 | -6/Lower Caves | Encountered a Master Thief 18788 | -6/Lower Caves | Spotted SB-F3X(f) 18788 | -6/Lower Caves | Spotted Z2-14Y(f) 18789 | -6/Lower Caves | Encountered a Master Thief 18789 | -6/Lower Caves | Encountered a Master Thief 18791 | -6/Lower Caves | AWS/Thermal stolen by Master Thief 18791 | -6/Lower Caves | YOLO Cannon stolen by Master Thief 18792 | -6/Lower Caves | Exp. Sensor Array stolen by Master Thief 18850 | -6/Lower Caves | Discovered new exit (range 12) 18869 | -6/Lower Caves | Identified exit to Data Miner 18946 | -6/Lower Caves | Build established: Mutant 19554 | -6/Lower Caves | Entered Data Miner 19554 | -6/Data Miner | Accompanied by 1 ally 19557 | -6/Data Miner | Discovered new exit (range 7) 19589 | -6/Data Miner | Met Data Miner 19633 | -6/Data Miner | Learned location of Section 7 (-2) 19633 | -6/Data Miner | Acquired the access code to Warlord's prototype stash 19650 | -6/Data Miner | Received God Mode back door access code from Data Miner 19688 | -6/Data Miner | Interfaced with the Data Conduit 19892 | -6/Data Miner | Found Exp. Thermal Shield 19992 | -6/Data Miner | Entered Proximity Caves 20098 | -5/Proximity Caves | Attacked by a faux Warlord 20386 | -5/Proximity Caves | Learned 8 Factory zone layouts 20624 | -5/Proximity Caves | Discovered new exit (range 6) 20646 | -5/Proximity Caves | Entered Factory 20646 | -5/Factory | Evolved 2 slots: Propulsion x1, Utility x1 20647 | -5/Factory | Identified exit to Upper Caves 20647 | -5/Factory | Identified exit to Factory 20649 | -5/Factory | Loaded intel: 312 machine locations 20728 | -5/Factory | Build established: Scavenger-Mutant 20908 | -5/Factory | Lost 4 parts (1p1u2w) 20987 | -5/Factory | System corruption reached 10% 20991 | -5/Factory | Destroyed 11 combat bots 21004 | -5/Factory | System corruption reached 30% 21017 | -5/Factory | Lost 14 parts (1p4n4u5w) 21122 | -5/Factory | Identified exit to Garrison 21122 | -5/Factory | Entered Garrison 21123 | -5/Garrison | Loaded intel: 41 machine locations 21153 | -5/Garrison | Discovered new exit (range 56) 21153 | -5/Garrison | Discovered new exit (range 65) 21153 | -5/Garrison | Discovered new exit (range 29) 21153 | -5/Garrison | Discovered new exit (range 57) 21197 | -5/Garrison | Garrison Relay disabled 21229 | -5/Garrison | Spotted B-75 Beast 21230 | -5/Garrison | Triggered checkpoint 21296 | -5/Garrison | Triggered checkpoint 21337 | -5/Garrison | Destroyed B-75 Beast 21487 | -5/Garrison | Destroyed 7 combat bots 21511 | -5/Garrison | Garrison Relay disabled 21578 | -5/Garrison | Triggered checkpoint 21580 | -5/Garrison | Triggered checkpoint 21714 | -5/Garrison | Expanded RIF knowledge: Hotswap 21783 | -5/Garrison | Spotted B-75 Beast 21802 | -5/Garrison | Rewired B-86 Titan 21813 | -5/Garrison | Allies destroyed B-75 Beast 21858 | -5/Garrison | Triggered checkpoint 21982 | -5/Garrison | Entered Factory 21982 | -5/Factory | Accompanied by 4 allies 21984 | -5/Factory | Loaded intel: 304 machine locations 22437 | -5/Factory | Identified exit to Garrison 22441 | -5/Factory | Entered Garrison 22442 | -5/Garrison | Loaded intel: 30 machine locations 22470 | -5/Garrison | Spotted B-90 Cyclops 22474 | -5/Garrison | Rewired B-90 Cyclops 22476 | -5/Garrison | Rewired B-90 Cyclops 22479 | -5/Garrison | Spotted B-75 Beast 22506 | -5/Garrison | Allies destroyed B-75 Beast 22514 | -5/Garrison | Destroyed B-90 Cyclops 22543 | -5/Garrison | Lost 3 parts (2n1w) 22616 | -5/Garrison | Triggered checkpoint 22657 | -5/Garrison | Expanded RIF knowledge: Zone Cloak 22681 | -5/Garrison | Core integrity fell below 50% 22704 | -5/Garrison | Lost 3 parts (1p2u) 22720 | -5/Garrison | Found embedded Infiltrators 22722 | -5/Garrison | Triggered checkpoint 22792 | -5/Garrison | Garrison Relay disabled 22837 | -5/Garrison | Spotted B-75 Beast 22842 | -5/Garrison | Triggered checkpoint 22868 | -5/Garrison | Destroyed B-75 Beast 22951 | -5/Garrison | Discovered exit to Factory (range 12) 23036 | -5/Garrison | Triggered checkpoint 23073 | -5/Garrison | Garrison Relay disabled 23150 | -5/Garrison | Triggered checkpoint 23154 | -5/Garrison | Discovered new exit (range 6) 23176 | -5/Garrison | Entered Factory 23176 | -5/Factory | Accompanied by 5 allies 23177 | -5/Factory | Loaded intel: 240 machine locations 23178 | -5/Factory | Build established: Botlord-Mutant 23379 | -5/Factory | Garrison activated, responded to threat 23384 | -5/Factory | Identified exit to Garrison 23384 | -5/Factory | Entered Garrison 23384 | -5/Garrison | Accompanied by 2 allies 23385 | -5/Garrison | Loaded intel: 26 machine locations 23443 | -5/Garrison | Expanded RIF knowledge: Coupler Efficiency 23494 | -5/Garrison | Triggered checkpoint 23525 | -5/Garrison | Garrison Relay disabled 23648 | -5/Garrison | Triggered checkpoint 23728 | -5/Garrison | Garrison Relay disabled 23752 | -5/Garrison | Discovered exit to Factory (range 9) 23770 | -5/Garrison | Entered Factory 23770 | -4/Factory | Accompanied by 2 allies 23770 | -4/Factory | Evolved 2 slots: Propulsion x1, Utility x1 23771 | -4/Factory | Loaded intel: 254 machine locations 23832 | -4/Factory | Discovered new exit (range 5) 23924 | -4/Factory | Discovered new exit (range 8) 24089 | -4/Factory | Identified exit to Garrison 24125 | -4/Factory | Sucked down chute 24125 | -4/Factory | Entered Waste 24140 | -4/Waste | EMP discharged 24140 | -4/Waste | System corruption reached 10% 24146 | -4/Waste | Spotted C-40 Crusher 24147 | -4/Waste | Spotted C-40 Crusher 24155 | -4/Waste | Spotted C-40 Crusher 24158 | -4/Waste | Spotted C-40 Crusher 24165 | -4/Waste | Spotted C-40 Crusher 24175 | -4/Waste | 3 allies followed down the chute 24175 | -4/Waste | Spotted C-40 Crusher 24177 | -4/Waste | Discovered new exit (range 15) 24192 | -4/Waste | Entered Factory 24193 | -4/Factory | Loaded intel: 239 machine locations 24261 | -4/Factory | Discovered new exit (range 32) 24328 | -4/Factory | Discovered new exit (range 15) 24380 | -4/Factory | Identified exit to Upper Caves 24556 | -4/Factory | Identified exit to Garrison 24574 | -4/Factory | Entered Garrison 24574 | -4/Garrison | Accompanied by 5 allies 24575 | -4/Garrison | Loaded intel: 25 machine locations 24599 | -4/Garrison | Expanded RIF knowledge: Signal Jamming 24653 | -4/Garrison | Garrison Relay disabled 24699 | -4/Garrison | Spotted B-86 Titan 24706 | -4/Garrison | Triggered checkpoint 24733 | -4/Garrison | Destroyed B-86 Titan 24805 | -4/Garrison | Garrison Relay disabled 24854 | -4/Garrison | Discovered new exit (range 14) 24956 | -4/Garrison | Triggered checkpoint 25098 | -4/Garrison | Discovered new exit (range 8) 25132 | -4/Garrison | Triggered checkpoint 25212 | -4/Garrison | Garrison Relay disabled 25304 | -4/Garrison | Triggered checkpoint 25370 | -4/Garrison | Triggered checkpoint 25393 | -4/Garrison | Garrison Relay disabled 25457 | -4/Garrison | Garrison Relay disabled 25461 | -4/Garrison | Garrison Relay disabled 25462 | -4/Garrison | Garrison Relay disabled 25495 | -4/Garrison | Garrison Relay disabled 25543 | -4/Garrison | Discovered new exit (range 13) 25821 | -4/Garrison | Entered Factory 25821 | -4/Factory | Accompanied by 5 allies 25822 | -4/Factory | Loaded intel: 253 machine locations 26114 | -4/Factory | Discovered new exit (range 19) 26327 | -4/Factory | Identified exit to Garrison 26327 | -4/Factory | Entered Garrison 26327 | -4/Garrison | Accompanied by 6 allies 26328 | -4/Garrison | Loaded intel: 32 machine locations 26367 | -4/Garrison | Triggered checkpoint 26439 | -4/Garrison | Expanded RIF knowledge: Code Merge 26481 | -4/Garrison | Garrison Relay disabled 26518 | -4/Garrison | Garrison Relay disabled 26536 | -4/Garrison | Triggered checkpoint 26570 | -4/Garrison | Spotted B-86 Titan 26571 | -4/Garrison | Assimilated Titan 7a with formatsys_high 26572 | -4/Garrison | Triggered checkpoint 26600 | -4/Garrison | Spotted B-86 Titan 26607 | -4/Garrison | Spotted B-86 Titan 26640 | -4/Garrison | Destroyed B-86 Titan 26647 | -4/Garrison | Allies destroyed B-86 Titan 26678 | -4/Garrison | Discovered new exit (range 5) 26710 | -4/Garrison | Expanded RIF knowledge: Crosswire 26756 | -4/Garrison | Triggered checkpoint 26832 | -4/Garrison | Garrison Relay disabled 26902 | -4/Garrison | Triggered checkpoint 26943 | -4/Garrison | Garrison Relay disabled 27028 | -4/Garrison | Triggered checkpoint 27052 | -4/Garrison | Triggered checkpoint 27127 | -4/Garrison | Garrison Relay disabled 27150 | -4/Garrison | Triggered checkpoint 27179 | -4/Garrison | Spotted Striker 27198 | -4/Garrison | Destroyed Striker 27227 | -4/Garrison | Rewired Striker 27241 | -4/Garrison | Rewired Striker 27401 | -4/Garrison | Discovered new exit (range 3) 27431 | -4/Garrison | Entered Research 27431 | -3/Research | Accompanied by 11 allies 27431 | -3/Research | Evolved 2 slots: Utility x1, Weapon x1 27432 | -3/Research | Loaded intel: 104 machine locations 27460 | -3/Research | Identified exit to Garrison 27648 | -3/Research | Build established: Botlord-Gunner 27691 | -3/Research | Garrison activated, responded to threat 27938 | -3/Research | Spotted B-86 Titan 27951 | -3/Research | Assimilated Titan 8a with formatsys_high 27999 | -3/Research | Build established: Botlord-Mutant 28083 | -3/Research | Identified exit to Garrison 28083 | -3/Research | Entered Garrison 28083 | -3/Garrison | Accompanied by 10 allies 28084 | -3/Garrison | Loaded intel: 35 machine locations 28256 | -3/Garrison | Triggered checkpoint 28278 | -3/Garrison | Garrison Relay disabled 28371 | -3/Garrison | Triggered checkpoint 28376 | -3/Garrison | Triggered checkpoint 28380 | -3/Garrison | Spotted B-86 Titan 28398 | -3/Garrison | Allies destroyed B-86 Titan 28469 | -3/Garrison | Expanded RIF knowledge: Code Merge 28494 | -3/Garrison | Discovered new exit (range 13) 28574 | -3/Garrison | Triggered checkpoint 28595 | -3/Garrison | Garrison Relay disabled 29018 | -3/Garrison | Triggered checkpoint 29060 | -3/Garrison | Triggered checkpoint 29078 | -3/Garrison | Triggered checkpoint 29179 | -3/Garrison | Garrison Relay disabled 29232 | -3/Garrison | Triggered checkpoint 29269 | -3/Garrison | Discovered new exit (range 11) 29420 | -3/Garrison | Triggered checkpoint 29431 | -3/Garrison | Discovered new exit (range 6) 29434 | -3/Garrison | Spotted B-75 Beast 29478 | -3/Garrison | Entered Research 29478 | -3/Research | Accompanied by 11 allies 29479 | -3/Research | Loaded intel: 100 machine locations 29526 | -3/Research | P-80 Master assimilated allied Veteran 8s 29541 | -3/Research | P-80 Master assimilated allied Veteran 8p 29736 | -3/Research | Identified exit to Garrison 29743 | -3/Research | Entered Garrison 29743 | -3/Garrison | Accompanied by 11 allies 29744 | -3/Garrison | Loaded intel: 31 machine locations 29781 | -3/Garrison | Expanded RIF knowledge: Program Shield 29866 | -3/Garrison | Garrison Relay disabled 29878 | -3/Garrison | Triggered checkpoint 29943 | -3/Garrison | Spotted B-86 Titan 29953 | -3/Garrison | Destroyed B-86 Titan 29954 | -3/Garrison | Triggered checkpoint 29960 | -3/Garrison | Triggered checkpoint 29984 | -3/Garrison | Triggered checkpoint 30066 | -3/Garrison | Triggered checkpoint 30073 | -3/Garrison | Garrison Relay disabled 30149 | -3/Garrison | Spotted B-86 Titan 30188 | -3/Garrison | Destroyed B-86 Titan 30319 | -3/Garrison | Discovered new exit (range 8) 30400 | -3/Garrison | Spotted B-86 Titan 30409 | -3/Garrison | Destroyed B-86 Titan 30430 | -3/Garrison | Found Unknown Hackware 30430 | -3/Garrison | Identified Relay Coupler [Proto] 30435 | -3/Garrison | Found Relay Coupler [Proto] 30441 | -3/Garrison | Found Relay Coupler [Proto] 30444 | -3/Garrison | Found Relay Coupler [Proto] 30488 | -3/Garrison | Entered Research 30488 | -2/Research | Accompanied by 1 ally 30488 | -2/Research | Evolved 2 slots: Power x1, Utility x1 30489 | -2/Research | Loaded intel: 104 machine locations 30589 | -2/Research | Identified exit to Garrison 30618 | -2/Research | Entered Garrison 30618 | -2/Garrison | Accompanied by 2 allies 30619 | -2/Garrison | Loaded intel: 35 machine locations 30654 | -2/Garrison | Triggered checkpoint 30672 | -2/Garrison | Garrison Relay disabled 30721 | -2/Garrison | Expanded RIF knowledge: Patrol Navigation 30868 | -2/Garrison | Spotted B-90 Cyclops 30874 | -2/Garrison | Triggered checkpoint 30875 | -2/Garrison | Triggered checkpoint 30879 | -2/Garrison | Triggered checkpoint 30915 | -2/Garrison | Destroyed B-90 Cyclops 30920 | -2/Garrison | Triggered checkpoint 30970 | -2/Garrison | Lost 4 parts (1p1n1u1w) 31164 | -2/Garrison | Discovered new exit (range 12) 31178 | -2/Garrison | Expanded RIF knowledge: Autooverride 31232 | -2/Garrison | Garrison Relay disabled 31232 | -2/Garrison | Triggered checkpoint 31424 | -2/Garrison | Spotted Executioner 31424 | -2/Garrison | Spotted Executioner 31432 | -2/Garrison | Assimilated Executioner with formatsys_high 31443 | -2/Garrison | Assimilated Executioner with formatsys_high 31480 | -2/Garrison | Discovered new exit (range 12) 31494 | -2/Garrison | Triggered checkpoint 31520 | -2/Garrison | Garrison Relay disabled 31690 | -2/Garrison | Found Relay Coupler [Proto] 31693 | -2/Garrison | Found Relay Coupler [Proto] 31697 | -2/Garrison | Found Relay Coupler [Proto] 31700 | -2/Garrison | Found Relay Coupler [Proto] 31738 | -2/Garrison | Entered Access 31738 | -1/Access | Accompanied by 2 allies 31738 | -1/Access | Evolved 2 slots: Utility x2 31739 | -1/Access | Loaded intel: 117 machine locations 32238 | -1/Access | First assault squad dispatched 32320 | -1/Access | High security lockdown imminent 32400 | -1/Access | High security lockdown engaged 32466 | -1/Access | Found Exp. Core Analyzer 32470 | -1/Access | Found Prototype Processor 32470 | -1/Access | Identified Exp. Targeting Computer 32522 | -1/Access | Assimilated ARC 10a with formatsys_deep 32551 | -1/Access | Spotted Investigator 32565 | -1/Access | Allies destroyed Investigator 32630 | -1/Access | System corruption reached 10% 32681 | -1/Access | Destroyed 20 combat bots 32689 | -1/Access | Lost 11 parts (3p2n4u2w) 32723 | -1/Access | Garrison activated, responded to threat 32796 | -1/Access | Spotted B-99 Colossus 32797 | -1/Access | Spotted B-99 Colossus 32805 | -1/Access | Core integrity fell below 50% 32826 | -1/Access | Intercept squad dispatched 32834 | -1/Access | Core integrity fell below 20% 32853 | -1/Access | Spotted Tracker 32868 | -1/Access | Spotted Tracker 32871 | -1/Access | Assimilated Tracker with formatsys_high 32884 | -1/Access | Lost 21 parts (1p8n8u4w) 32889 | -1/Access | Discovered new exit (range 8) 32894 | *** | Escaped! Last Messages --------------- 32855_ E2P&DB0H66/ M|HTVONT CFZG|0G|A|EIG:W Tracker: "THREAT CONFIRMED. DEPLOY COMBAT PROGRAMMER." 32870_ ALERT: Heavy assault forces dispatched. 32871_ Jacked Tracker... >>formatsys_high Rerouting network defenses. Erasing system data. Installing primary routines, ETC: 6. 32872_ System corrupted: Heat flow error (+138). 32872_ Reactivated Tracker. 32876_ The unstable cave ceiling collapses. 32876_ ALERT: Suspicious intruders detected, dispatching Specialist reinforcements to area. Sealed Barrier opened remotely. 32889_ EXIT=FOUND 32889_ The Access Shell folds into the floor. 32893_ Penetrated by Slug. 32893_ Knocked back. 32893_ Penetrated by Slug. 32894_ System corrupted: IFF burst signal emitted. Map ----- +----------------------------------------------------+ | #####+################# # # ### | | ??????????##########??# # + | | ??????????# ?# # # | | ??????????# ?# # ## | | ??????????# # % # ##+ | | ??????????# # # # | | ??????????# + / # | | ??????????# % " # # # | | ?????"""""# # " """""" # | | ?????"""""############# """ """""" # | | ?????"""""??????????? ## # """""" # | | ?????"""""?????????? ####### """""" # | | ?????"""""?????????# #?????# """""" # | | ?????"""""?????????# C#?????#######?#### | | ???????????????????# BB BB #????????????????### | | ???????????????????# BB BB #??????????????????# | | ???????????????????# #??????????????????# | | ???????????????????# #?????????"""""????# | | ???????????????????# #?????????""T""????# | | ???????????????????# #??????????????????# | | ???????????????????# #??????????????????? | | ???????????????????# #??????????????????? | | ???????????????????# #??????????????????? | | ???????????????????# #??????????????????? | | ???????????????????# "" #??????????????????? | | ???????""??????????# "@ #???????###+##?????# | | ???????""??????????# #???????# ####### | | ?????""""""????????# % #????#### | | ?????""""""????????# %%#????# % | | ???????""??????????# ######/## ####### | | ???????""?????????# ;## ## ##?????# | | ??????????????????##"" !p#;## ## #??????? | | ???????????????????#"" !%#### * ## #??????? | | ???????????????????#"" !*!#??# ## #??????? | | ???????????????????#T [g#??# ## #??????? | | ???????????????????#"" !b#??# ## #??????? | | ???????????????????#"" #??# *## #??????? | | ???????????????????#"" g######"## #?????? | | ?????????????? g H | | ?????????????? | | ???????????????######################## !###+#?? | | ??????????????????????????????????????##+###?????? | | ?????????????????????????????????????????????????? | | ??"???????????"??????????????????????????????????? | | ?"""?????????"""?????????????????????????????????? | | ??"""?????????"""????????????????????????????????? | | ???"???????????"?????????????????????????????????? | | ?????????????????????????????????????????????????? | | ?????????????????????????????????????????????????? | | ?????????????????????????????????????????????????? | +----------------------------------------------------+ Best States ------------- Heat Dissipation 133 Coolant Potential 100 Energy Generation 65 Energy Capacity 1160 Matter Stores 300 Matter Capacity 300 Sight Range 22 Robot Scan Range 20 Terrain Scan Density 10 Jamming Range 16 Additional Mass Support 9 EM Shielding 2 Armor Coverage 600 Resistance: TH 30 Weapon Cycling 25 Evasion (%) 55 Targeting Accuracy 12 Target Analysis 9 Core Analysis 8 Armor Integrity Analysis 40 Recoil Reduction 6 Particle Charging 25 Offensive Hacking 20 Defensive Hacking 12 Relay Coupler Types 10 Relay Coupler Value 240 Item Schematics ----------------- Combat Drone Bay | -6/Data Miner | Free Lgt. Regenerative Plating | -6/Data Miner | Free Cld. Gravmag System | -6/Data Miner | Free Exp. Heat Sink | -6/Data Miner | Free Hvy. Proton Cannon | -6/Data Miner | Free Impulse Thruster | -6/Data Miner | Free Lrn. Terrain Scanner | -6/Data Miner | Free Hvy. Disruptor Cannon | -6/Data Miner | Free Linear Gravjet | -6/Data Miner | Free Robot Schematics ------------------ S-10 Pest | -10/Materials | Hacked R-10 Processor | -6/Data Miner | Free G-50 Soldier | -6/Data Miner | Free A-15 Conveyor | -6/Data Miner | Free Fabricated ------------ Nothing Alien Tech Used ----------------- None Achievements -------------- None Challenges ------------ None Game ------ Seed PrecisionSmallModule Manual? 0 Play Time 05:13:33 Cumulative 337.4 hours Start 2022.07.25 @ 11:12:38 End 2022.07.25 @ 16:49:37 Sessions 1 Manual Loads 0 Difficulty Rogue Special Mode None Game No. 118 Rogue 103 Adventurer 15 Explorer 0 Win Type 0 Total 17 Types 6/0/6/1/2/0/2/0/0 Lore% 92 Gallery% 91 Achievement% 80 Wizard Run 0 Options --------- ASCII 0 Keyboard 0 Movement Numpad Keybinds 0 Fullscreen 1 Font 18/SmallcapsGlow Map View 76x50 Tactical HUD 1 Map Filters NONE Filters NONE Steam 1 RUN: a742d068-4f35-458a-bfec-9ea4cba7c6ac